Cogmind - Beta 15 @@@ ROGUE MODE // 2025.08.10 @ 17:14:30 Player: xack Result: Destroyed by G-73 Enforcer with Phase Gun Performance ------------- Evolutions (9) 4500 Regions Visited (36) 7200 Robots Destroyed (523) 2615 Value Destroyed (26086) 26086 Prototype IDs (83) 1660 Alien Tech Used (2) 400 Bonus (10826) 10826 TOTAL SCORE: 53287 Bonus ------- High Alert Combat Kills 3636 Follower Combat Kills 1704 Entered Garrisons 600 Network Hubs Disabled 200 Aligned with FarCom 300 Met Data Miner 300 Acquired ECA 300 Met Zhirov 300 Met Warlord at Base 500 MAIN.C Attacked Warlord 500 Built Enhanced Grunts 300 A7 Reached Mainframe 300 Met Warlord at Research 2000 Friendly Fire -114 Cogmind --------- Core Integrity 0/1600 Matter 14/300 Energy 77/100 System Corruption 47% Temperature Cool (0) Movement Core (50) Location -1/Access Parts ------- > --- POWER (3) -------- (None) > --- PROPULSION (6) --- (None) > --- UTILITY (11) ----- (None) > --- WEAPON (5) ------- (None) > --- INVENTORY (5) ---- Improved Shock Absorption System Improved Point Defense System Advanced Recalibrator Point Singularity Launcher Improved Plasma Cutter Peak State ------------ > --- POWER ------------ Heavy Antimatter Reactor Particle Reactor Quantum Reactor > --- PROPULSION ------- Advanced Heavy Treads Biometal Heavy Treads Biometal Heavy Treads > --- UTILITY ---------- Advanced Heat Sink Advanced Cooling System Advanced Cooling System Advanced Coolant Injector Huge Storage Unit Enhanced Optical Array Improved Armor Integrity Analyzer Centrium Medium Armor Plating Graphene Brace Advanced Thermal Defense Suite Advanced Force Field > --- WEAPON ----------- HERF Cannon Enhanced Nova Cannon Compact Linear Accelerator Molecular Deconstructor > --- INVENTORY -------- Improved Heavy Treads Improved Heavy Treads High-density Centrium Heavy Treads High-capacity Storage Unit Improved Matter Compressor Improved Shock Absorption System Advanced Force Field Improved Point Defense System Advanced Point Defense System Dynamic Insulation System Transdimensional Reconstructor Quantum Rifle Enhanced Quantum Rifle Enhanced Quantum Rifle HERF Cannon HERF Cannon HERF Cannon Linear Accelerator Point Singularity Launcher Advanced Remote Datajack Improved Plasma Cutter [Rating: 208] Favorites ----------- Power Quantum Reactor Engine Heavy Ion Engine Power Core Neutrino Core Reactor Quantum Reactor Propulsion Light Treads Treads Light Treads Leg Shield Leg Wheel Armored Huge Wheel Utility High-capacity Storage Unit Device Advanced Heat Sink Storage High-capacity Storage Unit Processor Improved Targeting Computer Hackware Improved Hacking Suite Protection Improved Medium Armor Plating Weapon Wave Gun Energy Gun Wave Gun Energy Cannon Enhanced Nova Cannon Ballistic Gun Advanced KE Penetrator Ballistic Cannon Heavy Flak Cannon Launcher Improved Grenade Launcher Special Weapon Molecular Deconstructor Slashing Weapon Katana Build | -11 -10 -10 -9 -9 -9 -8 -8 -8 -7 -7 -7 -7 -7 -7 -7 -7 -6 -6 -6 -6 -6 -6 -6 -5 -5 -5 -5 -4 -4 -4 -4 -4 -3 -3 -2 -1 ------- Run | Yrd Mat Min Mat Min Exi Min Mat Gar Fac Was Fac Gar Fac Low Low Dat Pro Fac Ext Cet Arc Hub Gar Fac Upp Upp War Pro Fac Upp Upp Zhi Pro Res Res Acc Slots Evolved 18 | . . . 2 . . . 2 . 2 . . . . . . . . 2 . . . . . 2 . . . . 2 . . . . 2 2 2 Power 2 | . . . . . . . . . . . . . . . . . . . . . . . . . . . . . 1 . . . . . . 1 Propulsion 4 | . . . 1 . . . 1 . . . . . . . . . . 1 . . . . . . . . . . 1 . . . . . . . Utility 9 | . . . . . . . 1 . 1 . . . . . . . . 1 . . . . . 2 . . . . . . . . . 2 1 1 Weapon 3 | . . . 1 . . . . . 1 . . . . . . . . . . . . . . . . . . . . . . . . . 1 . Parts Attached 345 | 7 14 1 13 . 2 1 25 7 2 2 17 10 20 4 1 . . 35 10 10 6 10 13 12 3 10 2 5 30 7 . 5 1 15 20 25 Power 29 | 1 2 . 3 . . . 1 . . . 2 1 2 2 . . . 1 1 3 . . . . . . . . 4 1 . 1 . 1 . 3 Engine 12 | 1 1 . 3 . . . 1 . . . 2 1 1 1 . . . 1 . . . . . . . . . . . . . . . . . . Core 9 | . 1 . . . . . . . . . . . 1 1 . . . . 1 1 . . . . . . . . 3 1 . . . . . . Reactor 8 | . . . . . . . . . . . . . . . . . . . . 2 . . . . . . . . 1 . . 1 . 1 . 3 Propulsion 78 | 2 5 . 4 . . . 9 4 . 2 1 3 3 . . . . 11 2 1 . 4 6 . . 3 . 1 6 1 . . . 2 5 3 Treads 65 | 2 2 . 4 . . . 9 4 . . 1 3 2 . . . . 10 1 1 . 3 6 . . 1 . 1 4 1 . . . 2 5 3 Leg 7 | . 2 . . . . . . . . . . . . . . . . 1 . . . 1 . . . 2 . . 1 . . . . . . . Wheel 6 | . 1 . . . . . . . . 2 . . 1 . . . . . 1 . . . . . . . . . 1 . . . . . . . Hover . | . . . . . . . . . . . . . . . . . . . . . . . . . . . . . . . . . . . . . Flight . | . . . . . . . . . . . . . . . . . . . . . . . . . . . . . . . . . . . . . Utility 124 | 2 3 . 1 . 1 1 5 1 2 . 6 2 6 1 1 . . 14 4 2 2 4 4 8 1 3 2 2 14 4 . 3 . 8 9 8 Device 57 | 1 1 . . . 1 1 1 . 1 . 2 1 2 . 1 . . 7 1 . 2 . 3 5 . 3 . . 7 2 . . . 4 4 7 Storage 10 | 1 2 . 1 . . . . . . . . . 1 . . . . . . . . 1 . 1 . . . . 1 . . 2 . . . . Processor 14 | . . . . . . . 1 . . . . . . . . . . 2 . 1 . . 1 . 1 . . . 3 1 . . . 1 3 . Hackware 8 | . . . . . . . . . 1 . . . 1 . . . . 2 . . . . . 1 . . . . 1 . . . . 1 1 . Protection 35 | . . . . . . . 3 1 . . 4 1 2 1 . . . 3 3 1 . 3 . 1 . . 2 2 2 1 . 1 . 2 1 1 Artifact . | . . . . . . . . . . . . . . . . . . . . . . . . . . . . . . . . . . . . . Weapon 114 | 2 4 1 5 . 1 . 10 2 . . 8 4 9 1 . . . 9 3 4 4 2 3 4 2 4 . 2 6 1 . 1 1 4 6 11 Energy Gun 39 | . . . 1 . . . 5 2 . . 2 1 5 1 . . . 2 1 1 1 1 . 1 1 3 . . 3 . . 1 1 2 1 3 Energy Cannon 14 | . . . 1 . 1 . . . . . . . . . . . . 2 . . 1 1 . . . . . . 1 . . . . . 2 5 Ballistic Gun 35 | 2 3 . 3 . . . 3 . . . 4 1 1 . . . . 4 1 3 2 . 1 1 . 1 . 1 2 1 . . . . . 1 Ballistic Cannon 8 | . . . . . . . . . . . . 2 1 . . . . . 1 . . . . . . . . . . . . . . 2 2 . Launcher 9 | . . 1 . . . . 1 . . . 2 . . . . . . . . . . . 2 1 . . . . . . . . . . 1 1 Special Weapon 5 | . 1 . . . . . . . . . . . . . . . . . . . . . . 1 1 . . 1 . . . . . . . 1 Impact Weapon . | . . . . . . . . . . . . . . . . . . . . . . . . . . . . . . . . . . . . . Slashing Weapon 4 | . . . . . . . 1 . . . . . 2 . . . . 1 . . . . . . . . . . . . . . . . . . Piercing Weapon . | . . . . . . . . . . . . . . . . . . . . . . . . . . . . . . . . . . . . . Special Melee Weapon . | . . . . . . . . . . . . . . . . . . . . . . . . . . . . . . . . . . . . . Unidentified Prototypes 34 | . . . 2 . . . 4 . . . 2 . 2 . . . . 1 . 4 2 2 . 2 1 . . . 1 . . 5 . . 5 1 Corrupted Parts 2 | . . . . . . . . . . . . . . . . . . . . . . . . . . . . . . . . . . . 2 . System Corruption 4 | . . . . . . . . . . . . . . . . . . . . . . . . . . . . . . . . . . . 4 . Parts Lost 107 | . 4 1 1 . . 1 . 2 . 1 6 9 1 . . . 2 4 1 1 . . 2 2 1 2 . 7 13 4 . . 1 5 . 36 Power 10 | . 1 . . . . . . . . . . 1 . . . . 1 . . . . . . . . . . . 1 1 . . . . . 5 Propulsion 26 | . 2 . . . . . . . . . 4 3 1 . . . . . . . . . 1 1 1 . . 2 3 1 . . . 1 . 6 Utility 32 | . . . . . . . . . . . 1 1 . . . . 1 2 1 1 . . 1 . . 1 . 3 4 . . . . 2 . 14 Weapon 39 | . 1 1 1 . . 1 . 2 . 1 1 4 . . . . . 2 . . . . . 1 . 1 . 2 5 2 . . 1 2 . 11 Highest Loss Streak 11 | . 2 1 1 . . 1 . 1 . 1 5 4 1 . . . 2 2 1 1 . . 1 1 1 1 . 4 5 3 . . 1 3 . 11 To Critical Strikes 1 | . . . . . . . . . . . . 1 . . . . . . . . . . . . . . . . . . . . . . . . Average Backups 18 | 3 10 14 18 20 20 20 19 19 19 19 18 19 19 19 19 19 18 18 18 17 17 16 16 18 18 17 18 17 21 21 24 24 23 23 21 18 Power . | . 1 1 1 2 2 2 1 1 1 2 1 . 1 . 1 1 . . 1 1 1 1 1 1 1 . . 1 . . 1 1 1 1 1 . Propulsion 2 | 2 3 2 2 4 4 4 4 4 5 5 2 1 2 2 2 2 2 2 2 2 2 2 2 1 1 1 1 1 1 2 3 3 3 3 4 2 Utility 9 | . 3 8 8 9 9 10 10 10 9 9 10 11 10 10 10 10 9 8 7 7 7 7 7 10 11 10 9 8 12 13 16 15 15 14 11 8 Weapon 4 | . 3 3 5 5 4 4 4 4 4 3 3 5 6 5 5 5 5 5 6 6 5 5 5 3 4 5 5 4 3 2 2 2 1 1 1 4 Tool/Special . | . . . . . . . . . . . . . . . . . . . . . . . . . . . . . . . . . . . . . Unused Backups 80 | . 6 1 7 . . 1 9 1 . . 6 . 4 1 . . . 2 4 4 2 . 1 3 2 . 3 1 4 . . 2 . 5 6 5 Power 7 | . . . 2 . . . 1 . . . . . . . . . . . 1 . . . . . . . . 1 . . . 1 . . 1 . Propulsion 13 | . 3 . . . . . 1 1 . . . . . . . . . . 2 3 . . . . . . . . . . . . . . 3 . Utility 43 | . 1 1 3 . . 1 3 . . . 6 . 4 . . . . 2 1 1 . . 1 3 1 . 2 . 1 . . 1 . 4 2 5 Weapon 13 | . 2 . 2 . . . 4 . . . . . . 1 . . . . . . 2 . . . . . 1 . 1 . . . . . . . Tool/Special 4 | . . . . . . . . . . . . . . . . . . . . . . . . . 1 . . . 2 . . . . 1 . . Average Slot Usage (%) 92 | . 99 100 98 100 100 98 99 99 92 92 99 97 96 92 92 67 91 93 97 93 93 99 99 89 83 88 93 84 86 88 89 68 88 87 85 77 Engine 3 | . 6 14 11 11 11 11 9 9 7 7 7 6 6 7 7 7 2 1 . . . . . . . . . . . . . . . . . . Core 1 | . 7 . . . . . . . . . . . . . . . 4 4 5 2 . . . . . . . . 7 5 5 2 . . . . Reactor 3 | . . . . . . . . . . . . . . . . . . . . 3 6 6 6 5 5 5 5 5 2 5 5 7 10 9 8 10 Treads 22 | . 25 28 32 33 33 33 36 36 30 15 26 28 23 15 15 15 15 11 27 20 20 31 32 25 18 19 23 18 15 20 21 21 21 16 12 11 Wheel 1 | . . . . . . . . . . 14 3 . 2 7 7 7 7 11 2 6 6 . . . . . . . . . . . . . . . Device 12 | . 14 14 11 11 11 11 2 4 3 . . 5 7 7 7 7 12 19 20 13 13 12 12 11 11 13 17 15 11 13 10 11 15 16 17 21 Storage 6 | . 14 14 11 11 11 11 9 9 7 7 7 7 7 7 7 7 7 6 6 6 6 6 6 5 5 5 5 5 5 5 5 5 5 4 4 3 Processor 5 | . . . . . . . 8 9 7 7 7 7 7 7 7 7 2 . . 5 6 6 6 5 5 5 5 3 3 7 10 10 10 9 8 6 Hackware 1 | . . . . . . . . . 3 7 7 1 1 2 . . . . . . . . . 5 5 5 5 5 7 5 5 2 . 2 . 1 Protection 5 | . . . . . . . 6 4 7 7 6 6 5 4 7 7 7 6 6 6 5 5 6 5 5 5 5 6 6 4 5 5 5 7 10 4 Energy Gun 9 | . . . 7 11 11 9 9 23 23 16 8 7 14 18 23 4 23 15 13 7 5 6 2 6 11 14 16 14 14 5 5 . 9 10 4 1 Energy Cannon 1 | . . . . . . . . . . . . . . . . . . . . 1 . 3 5 1 . . . . 2 5 5 . . . 3 6 Ballistic Gun 9 | . 27 27 24 22 22 21 16 . . . 17 8 . . . . . 4 6 16 19 15 17 13 10 7 4 3 1 9 10 . 10 3 . . Ballistic Cannon 2 | . . . . . . . . . . . . 10 7 7 6 1 6 . 5 . . . . . . . . . . . . . . 3 13 6 Slashing Weapon 1 | . . . . . . . . 2 . . 3 1 7 4 . . . 4 . . . . . . . . . . . . . . . . . . Peak Build Rating 208 | 7 10 8 19 18 26 19 32 32 31 35 43 48 54 56 55 55 58 73 74 92 92 93 87 103 107 107 103 106 141 131 127 128 131 152 183 208 Average Rating 81 | 5 8 7 15 18 18 18 25 29 31 31 37 44 48 54 54 40 56 64 71 85 89 87 82 96 104 102 101 97 129 124 127 105 127 145 173 182 On Entrance 68 | . 7 8 8 18 18 19 16 32 28 31 31 43 44 54 55 55 55 58 71 72 89 90 87 79 102 102 102 102 88 131 127 127 128 131 152 183 Naked Turns 63 | . . . . . . . . . . . . . . . . . . . . . . . . . . . . . . . . . . . . 63 Heaviest Build 242 | 13 30 30 59 58 58 58 63 63 68 65 71 83 81 79 79 79 88 90 90 94 94 95 93 109 110 107 94 98 154 149 145 145 146 173 205 242 Greatest Support 250 | 40 40 40 60 60 60 60 80 80 80 24 83 83 96 28 28 28 28 138 146 170 28 146 136 150 150 158 158 188 213 213 206 206 206 230 245 250 Greatest Overweight (x) 3 | 1 1 . 1 . . . . . . 2 2 1 2 2 2 2 3 3 3 3 3 3 . 1 . . . . 1 . . . . . 1 1 Average Overweight (x) . | . . . . . . . . . . 2 . . 1 2 2 2 2 1 1 2 3 . . . . . . . . . . . . . . . Largest Inventory Capacity 25 | 8 15 15 20 20 20 20 20 20 20 20 20 20 20 20 20 20 20 20 20 20 20 20 20 20 20 20 20 20 25 25 25 25 25 25 25 25 Average Capacity 20 | 7 12 15 19 20 20 20 20 20 20 20 20 20 20 20 20 20 20 20 20 20 20 20 20 20 20 20 20 20 23 25 25 25 25 25 25 24 Most Carried 25 | 6 15 15 20 20 20 20 20 20 20 20 20 20 20 20 20 20 20 20 20 20 20 20 20 20 20 20 20 20 25 25 25 25 25 25 25 25 Average Carried 20 | 4 10 14 18 20 19 20 19 19 19 19 18 19 19 19 20 20 19 19 19 19 19 19 19 19 19 19 19 19 22 22 25 24 24 24 24 21 Final Capacity 25 | 8 15 15 20 20 20 20 20 20 20 20 20 20 20 20 20 20 20 20 20 20 20 20 20 20 20 20 20 20 25 25 25 25 25 25 25 5 Final Carried 25 | 6 15 14 20 20 20 20 20 20 20 19 20 20 20 20 20 20 20 20 20 20 20 20 20 20 20 20 20 18 23 25 25 24 25 25 25 5 Class Distribution -------------------- 29% | Scavenger-Tank 17% | Scavenger-Skirmisher 13% | Tank 11% | Scavenger-Gunner 7% | Skirmisher 6% | Mutant 5% | Commander-Gunner 3% | Scavenger-Mutant 3% | Gunner Dominant Class ---------------- Mutant | -10/Materials Mutant | -10/Mines Scavenger-Gunner | -9/Materials Scavenger-Gunner | -9/Mines Scavenger-Gunner | -9/Exiles Scavenger-Skirmisher | -8/Mines Scavenger-Skirmisher | -8/Materials Scavenger-Skirmisher | -8/Garrison Scavenger-Skirmisher | -7/Factory Scavenger-Skirmisher | -7/Waste Scavenger-Skirmisher | -7/Factory Skirmisher | -7/Garrison Skirmisher | -7/Factory Gunner | -7/Lower Caves Gunner | -7/Lower Caves Mutant | -7/Data Miner Tank | -6/Proximity Caves Tank | -6/Factory Commander-Tank | -6/Extension Commander-Gunner | -6/Cetus Commander-Gunner | -6/Archives Scavenger-Gunner | -6/Hub_04(d) Scavenger-Gunner | -6/Garrison Scavenger-Tank | -5/Factory Scavenger-Tank | -5/Upper Caves Scavenger-Tank | -5/Upper Caves Scavenger-Tank | -5/Warlord Scavenger-Tank | -4/Proximity Caves Scavenger-Tank | -4/Factory Scavenger-Tank | -4/Upper Caves Scavenger-Tank | -4/Upper Caves Scavenger-Mutant | -4/Zhirov Scavenger-Tank | -3/Proximity Caves Scavenger-Tank | -3/Research Scavenger-Tank | -2/Research Tank | -1/Access Resources | -11 -10 -10 -9 -9 -9 -8 -8 -8 -7 -7 -7 -7 -7 -7 -7 -7 -6 -6 -6 -6 -6 -6 -6 -5 -5 -5 -5 -4 -4 -4 -4 -4 -3 -3 -2 -1 ----------- Run | Yrd Mat Min Mat Min Exi Min Mat Gar Fac Was Fac Gar Fac Low Low Dat Pro Fac Ext Cet Arc Hub Gar Fac Upp Upp War Pro Fac Upp Upp Zhi Pro Res Res Acc Matter Collected 15690 | 298 756 207 723 . . 238 947 248 . . 936 773 877 189 134 . 152 801 537 157 256 445 822 460 243 452 80 235 658 350 24 200 176 665 546 2105 Remotely 10 | . . . . . . . . . . . . . 10 . . . . . . . . . . . . . . . . . . . . . . . Salvage Created 22401 | 57 936 48 588 . . 328 2030 1199 . 286 688 683 920 144 291 . 191 1207 702 136 413 906 1763 814 485 776 . 579 1921 428 73 . 124 984 100 2601 Parts 1077 | 6 65 9 32 . . 22 97 59 . . 47 31 34 5 8 . 5 56 22 3 22 37 82 37 21 46 . 25 85 14 2 . 11 58 5 131 Haulers Intercepted 13 | . 2 . 1 . . . 5 . . . . . . . . . . 1 . . . 2 . . . . . . 1 . . . . . . 1 Recyclers Shooed 8 | . . . . . . 1 . . . . 1 . 2 . . . . 3 . . . . . . . . . . . . . . . . . 1 Parts Field Recycled 5 | . . . . . . . . . . . . . . . . . . . . . . . . . . . . . . . . . . . . 5 Retrieved Matter 13 | . . . . . . . . . . . . . . . . . . . . . . . . . . . . . . . . . . . . 13 Parts Self-Destructed 127 | . . . . . . . . . . . . . . 5 8 . 4 . . . . . . . 24 39 . 25 . 10 2 . 10 . . . Prevented 1 | . . . . . . . . . . . . . . . . . . . . . . . . . . . . . . . . . 1 . . . Kills | -11 -10 -10 -9 -9 -9 -8 -8 -8 -7 -7 -7 -7 -7 -7 -7 -7 -6 -6 -6 -6 -6 -6 -6 -5 -5 -5 -5 -4 -4 -4 -4 -4 -3 -3 -2 -1 ------- Run | Yrd Mat Min Mat Min Exi Min Mat Gar Fac Was Fac Gar Fac Low Low Dat Pro Fac Ext Cet Arc Hub Gar Fac Upp Upp War Pro Fac Upp Upp Zhi Pro Res Res Acc Combat Hostiles Destroyed 416 | . 22 5 11 . . 9 27 22 . 1 11 28 10 4 8 . 6 20 11 2 2 5 32 13 8 17 . 16 31 6 1 . 2 16 2 68 Melee 1 | . . . . . . . . . . . 1 . . . . . . . . . . . . . . . . . . . . . . . . . Guns 240 | . 22 2 11 . . 5 25 15 . . 7 12 3 3 4 . 3 19 6 . 2 5 15 11 8 12 . 5 23 4 1 . 2 12 1 2 Cannons 70 | . . . . . . . . . . . . 6 7 . 1 . 1 . 5 2 . . 7 . . . . . 3 2 . . . 4 1 31 AOE 91 | . . 3 . . . 4 . 6 . 1 3 9 . . 3 . 2 . . . . . 7 2 . 5 . 11 5 . . . . . . 30 Classes Destroyed 18 | 1 5 . 5 . . . 2 . . 1 1 . . . . . . . . . . . 1 . . . . . . 1 . . . . . 1 Worker 20 | . . . 1 . . 1 1 . . . 2 . . . . . . 2 . . . 5 . 2 . . . . 4 . . . . . . 2 Builder 12 | . . . 1 . . . 2 . . . 1 . . . . . . 1 . . . . . 2 . . . . 1 . . . . 1 . 3 Tunneler 9 | 3 1 . . . . 2 . . . . 2 . 1 . . . . . . . . . . . . . . . . . . . . . . . Hauler 13 | . 2 . 1 . . . 5 . . . . . . . . . . 1 . . . 2 . . . . . . 1 . . . . . . 1 Recycler 16 | . . . 1 . . . 2 . . . 1 . 7 . . . . 2 . . . . . 2 . . . . . . . . . . . 1 Carrier 1 | . . . . . . . . . . . . . . . . . . . . . . . 1 . . . . . . . . . . . . . Operator 12 | . 1 . . . . . . . . . . . 1 . . . . 1 . . 8 . . . . . . . . . . . . 1 . . Watcher 19 | . 3 . . . . . 4 . . . 2 . . . . . . 1 . 1 . 1 1 1 . . . . 1 . . . . . . 4 Swarmer 105 | . 6 5 3 . . 3 . 6 . . . 11 . 1 1 . 3 6 2 . . . 8 8 1 7 . 6 9 1 . . . 5 . 13 Saboteur 2 | . . . . . . . . . . . . . . . . . . . . . . . . . . . . . . . . . . . . 2 Grunt 140 | . 16 . 6 . . 6 15 5 . . 4 12 3 1 4 . 2 3 2 . . 3 9 . 5 7 . 5 7 3 . . . 3 . 19 Brawler 11 | . . . . . . . 1 . . . . . . . . . 1 1 . . . . 3 . . . . 1 . 1 . . . . . 3 Duelist 18 | . . . 1 . . . 1 . . . 1 . . . 1 . . . 1 . . . 4 . 1 . . 2 . . . . . 1 . 5 Sentry 57 | . . . 1 . . . 8 8 . . 2 5 2 1 2 . . 2 6 . 2 2 6 1 1 1 . 1 4 . 1 . . . . 1 Hunter 26 | . . . . . . . 2 3 . . 1 . . . . . . 4 . . . . 2 . . 2 . 1 2 . . . . . . 9 Programmer 54 | . . . . . . . . . . . 3 . 5 1 . . . 4 . . . . . 4 . . . . 9 1 . . 2 7 2 16 Compactor 1 | . . . . . . . . . . 1 . . . . . . . . . . . . . . . . . . . . . . . . . . Cetus Guard 2 | . . . . . . . . . . . . . . . . . . . . 2 . . . . . . . . . . . . . . . . Enhanced Grunt 3 | . . . . . . . . . . . . . . . . . . . . . . 2 1 . . . . . . . . . . . . . Samaritan 2 | . . . . . . . . . . . . . . . . . . . . . . . . . . . . . . 2 . . . . . . Thug 2 | . . . . . . . . . . . . . . . . . . . . . . 2 . . . . . . . . . . . . . . Best Kill Streak 13 | 2 10 3 9 . . 4 5 4 . 1 4 10 3 3 5 . 3 4 2 3 6 6 13 8 4 6 . 11 6 4 1 . 2 4 2 11 Combat Bots Only 13 | . 7 3 6 . . 3 4 4 . 1 3 10 3 3 5 . 3 3 2 2 2 2 13 6 4 6 . 11 5 4 1 . 2 4 2 11 Max Kills in Single Turn 5 | 1 1 2 1 . . 2 3 3 . 1 3 3 1 1 1 . 2 2 1 1 2 3 2 3 2 5 . 5 4 2 1 . 1 2 1 5 Gunslinging 1 | . . . . . . 1 . 1 . . . . . . . . . 1 . . 1 1 1 1 1 . . . . . . . . 1 . . Exploded 5 | . . 2 . . . 2 . 3 . 1 2 3 . . 1 . 2 . . . . . 2 1 . 5 . 5 2 . . . . . . 5 Melee 1 | . . . . . . . . . . . 1 . . . . . . . . . . . . . . . . . . . . . . . . . Uniques/NPCs Destroyed . | . . . . . . . . . . . . . . . . . . . . . . . . . . . . . . . . . . . . . Combat | -11 -10 -10 -9 -9 -9 -8 -8 -8 -7 -7 -7 -7 -7 -7 -7 -7 -6 -6 -6 -6 -6 -6 -6 -5 -5 -5 -5 -4 -4 -4 -4 -4 -3 -3 -2 -1 -------- Run | Yrd Mat Min Mat Min Exi Min Mat Gar Fac Was Fac Gar Fac Low Low Dat Pro Fac Ext Cet Arc Hub Gar Fac Upp Upp War Pro Fac Upp Upp Zhi Pro Res Res Acc Hostile Shots Fired 3236 | . 114 18 60 . . 25 89 62 . . 107 206 99 36 13 . 26 125 317 22 6 46 175 76 38 70 15 74 257 65 . . 16 87 10 982 Missed 1063 | . 35 6 18 . . 6 34 15 . . 42 57 37 8 7 . 9 44 125 12 2 13 62 19 10 10 3 24 91 18 . . 6 25 1 324 Hits 2173 | . 79 12 42 . . 19 55 47 . . 65 149 62 28 6 . 17 81 192 10 4 33 113 57 28 60 12 50 166 47 . . 10 62 9 658 Melee 24 | . . . . . . . 3 . . . 6 . . . . . . 1 . . . . . . 1 . . 8 . . . . . 1 . 4 Projectile 2149 | . 79 12 42 . . 19 52 47 . . 59 149 62 28 6 . 17 80 192 10 4 33 113 57 27 60 12 42 166 47 . . 10 61 9 654 AOE 2 | . . . . . . . . . . . . . . . . . . . . . . . . . . . . . 1 . . . . . . 1 Critical Strikes 100 | . 2 . 1 . . . 4 2 . . 2 3 1 1 1 . . 2 1 3 1 . 1 . 1 1 . 6 13 3 . . 1 5 1 44 Actively Blocked 45 | . . . . . . . . . . . . . . . . . . . . . . . . . . . . . . . . . . 3 1 41 Part Disruptions 8 | . . . . . . . . . . . . . 2 . . . . . . . . . . . . . 1 . . . . . . . 1 4 Damage Taken 33330 | . 904 111 462 . . 284 956 669 . 53 1153 1627 848 317 122 . 269 1158 901 205 164 550 1220 1188 497 994 123 1279 3120 940 . . 233 1226 214 11543 Core 3040 | . 134 6 12 . . 64 136 92 . . 122 151 41 5 . . 12 106 61 26 . 29 100 56 42 69 12 9 148 75 . . 22 12 . 1498 Absorbed by Shields 4811 | . . . . . . . . . . . . . . . . . 24 48 759 65 . . . . 88 152 46 124 . . . . . 203 . 3302 Ignored by Resistances 794 | . . . . . . . . . . . . . . . . . . . . . . . . . . . . . . . . . . . . 794 Regen/Repaired (Parts) 1568 | . . . . . . . . . . . . . . . . . . . . . . . . 186 . . 246 . 784 . . . . . 352 . Core Remaining (%) 75 | 100 . 44 . . . 81 . 58 . . . . . . . . 52 . . . . . 62 . . . . 81 . . . . 78 99 100 . Volleys Fired 1059 | 6 88 7 34 . . 20 82 40 . 6 36 55 27 7 8 . 9 56 30 13 6 36 83 29 14 24 1 25 92 18 1 . 6 46 6 148 Largest 5 | 2 2 2 3 . . 3 3 3 . 1 4 4 3 4 4 . 4 4 4 3 4 4 4 4 4 4 4 4 4 4 4 . 4 4 5 5 Hottest 374 | 40 40 40 96 . . 96 150 150 . 36 134 243 193 284 284 . 284 270 265 240 174 184 231 229 229 284 284 291 340 236 234 . 225 285 322 374 Shots Fired 2930 | 12 176 12 102 . . 42 238 104 . 6 102 145 77 28 20 . 28 164 102 28 24 89 224 101 55 88 4 58 273 65 5 . 21 129 30 378 Gun 2240 | 12 176 10 102 . . 37 235 103 . . 101 97 54 21 15 . 20 155 73 18 24 74 146 98 55 87 4 52 226 48 4 . 21 99 11 62 Cannon 608 | . . . . . . . . . . . . 40 23 7 2 . 7 9 29 10 . 15 69 3 . . . . 44 15 1 . . 30 19 285 Launcher 69 | . . 2 . . . 5 3 1 . 6 1 8 . . 3 . 1 . . . . . 9 . . 1 . 6 3 2 . . . . . 18 Special 13 | . . . . . . . . . . . . . . . . . . . . . . . . . . . . . . . . . . . . 13 Kinetic 1397 | 12 176 10 85 . . 26 156 . . . 84 82 23 7 2 . 7 52 59 14 18 55 122 58 27 27 1 12 28 33 3 . 12 49 18 139 Thermal 1072 | . . . . . . . . . . . . 40 54 21 15 . 20 112 43 14 6 34 93 43 28 60 3 40 217 30 2 . 9 31 5 152 Explosive 59 | . . 2 . . . 5 3 1 . 6 1 8 . . 3 . 1 . . . . . 4 . . 1 . 6 . . . . . . . 18 Electromagnetic 389 | . . . 17 . . 11 79 103 . . 17 15 . . . . . . . . . . 5 . . . . . 28 2 . . . 49 7 56 Robot Hit Streak 20 | 2 20 4 11 . . 7 15 17 . 15 9 16 15 13 12 . 13 15 10 7 10 8 20 11 15 20 2 11 16 5 3 . 7 18 7 8 Robot Miss Streak 17 | 2 4 1 3 . . 3 3 6 . . 10 9 4 5 4 . 4 8 17 2 1 2 3 4 2 4 2 4 11 6 1 . 3 8 4 5 Penetration Max 2 | . . . . . . . . . . . . 1 . . . . . 2 1 . . 1 1 1 . 1 . 1 . 1 . . 1 1 . . Secondary Targets 39 | . 5 1 4 . . 1 3 3 . . 2 2 . . . . . 1 . . 1 1 1 3 2 2 . . 4 . . . . 3 . . Max Gunslinging Chain 1 | . 1 1 1 . . 1 1 1 . . 1 1 . . . . . 1 . . 1 1 1 1 1 1 . . 1 . . . . 1 . . Shots Hit Robots 1804 | 7 110 6 64 . . 26 170 79 . 6 77 106 67 19 18 . 24 110 69 20 31 41 118 61 31 61 2 41 134 25 3 . 12 67 14 185 Core Hits 1127 | 3 49 5 20 . . 22 83 48 . 2 58 92 44 12 22 . 19 89 76 15 8 27 58 28 15 29 . 36 77 15 3 . 4 40 4 124 Critical Kills 21 | . 1 . . . . . . . . . 1 . . . . . . . 1 . 1 3 6 1 2 2 . . . . . . . . . 3 Critical Parts Destroyed 22 | . 2 . 2 . . . 1 . . . . . . . . . . 1 . . . 4 5 6 . . . 1 . . . . . . . . Critical Strikes 73 | . 3 . 4 . . . 1 1 . . 1 1 2 . . . . 2 2 . 3 8 15 8 2 4 . 1 2 . . . 1 5 2 5 Burn 11 | . . . . . . . . . . . . . 2 . . . . . 1 . . 1 1 1 . 1 . . 2 . . . 1 . 1 . Meltdown 4 | . . . . . . . . . . . . . . . . . . . . . . . 1 . . . . . . . . . . . . 3 Destroy 46 | . 3 . 2 . . . 1 . . . 1 . . . . . . 2 1 . 3 7 13 7 2 3 . 1 . . . . . . . . Blast 5 | . . . . . . . . . . . . . . . . . . . . . . . . . . . . . . . . . . 2 1 2 Corrupt 6 | . . . 2 . . . . . . . . 1 . . . . . . . . . . . . . . . . . . . . . 3 . . Sever 1 | . . . . . . . . 1 . . . . . . . . . . . . . . . . . . . . . . . . . . . . Melee Attacks 136 | . . . . . . . 6 17 . . 27 14 24 . . . . 33 . . 15 . . . . . . . . . . . . . . . Impact . | . . . . . . . . . . . . . . . . . . . . . . . . . . . . . . . . . . . . . Slashing 136 | . . . . . . . 6 17 . . 27 14 24 . . . . 33 . . 15 . . . . . . . . . . . . . . . Piercing . | . . . . . . . . . . . . . . . . . . . . . . . . . . . . . . . . . . . . . Sneak Attacks 25 | . . . . . . . 2 . . . 2 . 9 . . . . 2 . . 10 . . . . . . . . . . . . . . . Combat Hostiles . | . . . . . . . . . . . . . . . . . . . . . . . . . . . . . . . . . . . . . Follow-up Attacks . | . . . . . . . . . . . . . . . . . . . . . . . . . . . . . . . . . . . . . Damage Inflicted 63637 | 84 1426 198 995 . . 1038 3243 2002 . 604 2046 3234 2103 490 891 . 631 2915 1795 517 1600 1753 4375 2121 819 1929 49 2471 4739 1078 80 . 382 1942 515 15572 Guns 32530 | 84 1426 73 964 . . 414 2786 1321 . . 1354 1411 977 424 293 . 364 2630 1164 238 423 1466 2325 1914 819 1575 49 861 3135 571 44 . 382 1601 148 1294 Cannons 11022 | . . . . . . . . . . . . 665 494 66 37 . 70 32 631 279 . 30 908 67 . . . . 620 358 36 . . 341 367 6021 Explosions 17327 | . . 125 31 . . 624 315 379 . 604 410 1158 . . 561 . 197 30 . . . 257 1142 140 . 354 . 1610 984 149 . . . . . 8257 Melee 2758 | . . . . . . . 142 302 . . 282 . 632 . . . . 223 . . 1177 . . . . . . . . . . . . . . . Ramming . | . . . . . . . . . . . . . . . . . . . . . . . . . . . . . . . . . . . . . Kinetic 19675 | 84 1426 73 716 . . 284 1563 . . . 1143 1154 494 66 37 . 70 779 1030 302 363 1186 1919 1188 321 395 . 224 236 451 44 . 206 658 367 2896 Thermal 20026 | . . . 31 . . 74 144 229 . . 410 651 977 424 293 . 364 1913 765 215 60 310 1394 849 498 1180 49 637 3950 478 36 . 176 548 82 3289 Explosive 14387 | . . 125 . . . 550 171 150 . 604 . 1158 . . 561 . 197 . . . . . 566 84 . 354 . 1610 . . . . . . . 8257 Electromagnetic 6791 | . . . 248 . . 130 1223 1321 . . 211 271 . . . . . . . . . 257 496 . . . . . 553 149 . . . 736 66 1130 Impact . | . . . . . . . . . . . . . . . . . . . . . . . . . . . . . . . . . . . . . Slashing 2758 | . . . . . . . 142 302 . . 282 . 632 . . . . 223 . . 1177 . . . . . . . . . . . . . . . Piercing . | . . . . . . . . . . . . . . . . . . . . . . . . . . . . . . . . . . . . . Highest Corruption 47 | . . . . . . . . . . 12 14 9 11 7 7 7 7 1 3 3 3 1 1 5 5 5 5 . 7 7 7 7 8 9 11 47 Average Corruption 6 | . . . . . . . . . . 8 13 9 8 7 7 7 7 1 2 3 2 1 1 3 5 5 5 . 6 7 7 7 7 4 5 12 Corruption Purged 14 | . . . . . . . . . . . 5 . 5 . . . . 1 . . 3 . . . . . . . . . . . . . . . Corruption Blocked . | . . . . . . . . . . . . . . . . . . . . . . . . . . . . . . . . . . . . . Effects 598 | . . . . . . . . . . 6 76 53 64 17 14 4 21 8 26 7 7 2 11 15 17 26 1 . 41 14 10 9 17 20 34 78 Message Errors 139 | . . . . . . . . . . . 13 8 16 5 2 4 6 2 8 1 3 . 5 2 2 6 . . 11 4 1 1 3 9 6 21 Matter Fused 152 | . . . . . . . . . . 1 27 13 16 4 6 . 2 3 4 . 1 1 4 5 6 4 1 . 10 5 . 4 5 5 9 16 Heat Flow Errors 79 | . . . . . . . . . . 1 11 9 8 3 . . 3 . 3 1 . . . 3 2 3 . . 6 2 4 2 4 1 7 6 Energy Discharges 53 | . . . . . . . . . . 1 8 3 6 1 2 . 1 2 3 2 . . 1 . 1 1 . . 4 2 1 . 2 1 7 4 Parts Rejected 5 | . . . . . . . . . . . 1 . . . . . 1 . . . . . . . . 1 . . 1 . . . . . . 1 Parts Fused 8 | . . . . . . . . . . . . 3 1 . . . . . . 1 . . . . . 1 . . 2 . . . . . . . Data Loss (minor) 63 | . . . . . . . . . . 2 7 7 7 2 2 . 4 1 5 2 1 . . 2 1 2 . . 3 . 1 1 2 1 2 8 Data Loss (major) 29 | . . . . . . . . . . . 2 5 4 . 1 . 1 . . . 2 . . . 1 4 . . 2 . . 1 1 2 . 3 Misfires 21 | . . . . . . . . . . . 1 3 4 . . . 1 . 2 . . . 1 2 2 . . . . 1 1 . . . 1 2 Alerts 19 | . . . . . . . . . . . 1 2 1 2 . . 1 . 1 . . 1 . 1 2 2 . . . . 2 . . 1 1 1 Misdirections 7 | . . . . . . . . . . 1 . . . . . . . . . . . . . . . . . . . . . . . . . 6 Weapon Failures 23 | . . . . . . . . . . . 5 . 1 . 1 . 1 . . . . . . . . 2 . . 2 . . . . . 1 10 Overload Shots 3 | . . . . . . . . . . . . . . . . . . . . 3 . . . . . . . . . . . . . . . . Overflow Damage 2137 | . . . . . . . . 48 . 24 117 27 156 . . . . 12 . . 436 . 40 23 . . . 5 115 100 . . . 9 38 987 Projectiles 354 | . . . . . . . . . . . . . . . . . . . . . . . . . . . . . 18 18 . . . 9 38 271 Explosions 1179 | . . . . . . . . 48 . 24 117 27 . . . . . . . . . . 40 23 . . . 5 97 82 . . . . . 716 Melee 604 | . . . . . . . . . . . . . 156 . . . . 12 . . 436 . . . . . . . . . . . . . . . Knockbacks 54 | . . . . . . . . . . . . 12 8 . . . . . 2 . . . . . . . . . . . . . . 4 4 24 Impact . | . . . . . . . . . . . . . . . . . . . . . . . . . . . . . . . . . . . . . Kinetic 52 | . . . . . . . . . . . . 12 8 . . . . . 2 . . . . . . . . . . . . . . 2 4 24 Secondary 2 | . . . . . . . . . . . . . . . . . . . . . . . . . . . . . . . . . . 2 . . Self-Inflicted Damage 749 | . . 20 . . . . 87 . . 54 56 45 . . . . . . . . . 97 . 155 . . . 131 1 9 . . . . . 94 Shots 23 | . . 1 . . . . 2 . . 3 1 2 . . . . . . . . . 1 . 2 . . . 5 1 1 . . . . . 4 Rammed . | . . . . . . . . . . . . . . . . . . . . . . . . . . . . . . . . . . . . . Targets Rammed . | . . . . . . . . . . . . . . . . . . . . . . . . . . . . . . . . . . . . . Kicked . | . . . . . . . . . . . . . . . . . . . . . . . . . . . . . . . . . . . . . Crushed . | . . . . . . . . . . . . . . . . . . . . . . . . . . . . . . . . . . . . . Highest Temperature 491 | . 27 . 241 . . 117 367 327 . 198 292 373 225 351 152 . 406 282 199 382 157 318 307 448 440 491 199 360 433 351 230 221 218 108 194 191 Average Temperature 97 | . 7 . 62 . . 44 62 98 . 110 86 99 76 128 63 . 134 83 70 135 75 117 82 152 180 184 99 112 128 136 93 112 91 29 85 69 Received Heat Transfer 5176 | . 420 . 216 . . 135 405 243 . . 204 591 114 117 45 . 69 62 254 . 18 111 318 9 118 90 6 187 576 232 . . . 44 . 592 Effects 29 | . . . . . . . . . . . . 1 . . . . . 2 . 1 . 1 . 3 4 6 . 3 7 1 . . . . . . Shutdowns 4 | . . . . . . . . . . . . . . . . . . . . . . . . . 1 2 . . 1 . . . . . . . Energy Bleed 8 | . . . . . . . . . . . . . . . . . . 2 . 1 . 1 . 1 . 1 . . 2 . . . . . . . Interference 9 | . . . . . . . . . . . . 1 . . . . . . . . . . . . 2 . . 2 4 . . . . . . . Matter Decay 1 | . . . . . . . . . . . . . . . . . . . . . . . . . . 1 . . . . . . . . . . Short Circuit 3 | . . . . . . . . . . . . . . . . . . . . . . . . 1 . 1 . 1 . . . . . . . . Damage (minor) 4 | . . . . . . . . . . . . . . . . . . . . . . . . 1 1 1 . . . 1 . . . . . . Siege Activations . | . . . . . . . . . . . . . . . . . . . . . . . . . . . . . . . . . . . . . Martial Activations . | . . . . . . . . . . . . . . . . . . . . . . . . . . . . . . . . . . . . . Shielding Activations . | . . . . . . . . . . . . . . . . . . . . . . . . . . . . . . . . . . . . . Robots Disrupted 2 | . . . . . . . . 1 . . . . . . . . . . . . . . . . . . . . 1 . . . . . . . Combat Hostiles 2 | . . . . . . . . 1 . . . . . . . . . . . . . . . . . . . . 1 . . . . . . . Robots Corrupted 6 | . . . . . . . 2 1 . . . 1 . . . . . . . . . . 2 . . . . . . . . . . . . . Combat Hostiles 6 | . . . . . . . 2 1 . . . 1 . . . . . . . . . . 2 . . . . . . . . . . . . . Parts Fried 33 | . . . . . . . 6 7 . . . 2 . . . . . . 1 . . 1 2 . . . . . 4 1 . . . 7 . 2 Impact Corruptions 1 | . . . . . . . . . . . . . . . . . . . . . . . . . . . . . . . . . . 1 . . Robots Melted 7 | . . . . . . . . . . . . . . 1 . . . 2 . . . . 1 . . . . . . . . . . . . 3 Combat Hostiles 6 | . . . . . . . . . . . . . . 1 . . . 1 . . . . 1 . . . . . . . . . . . . 3 Parts Melted 49 | . . . . . . . . . . . . 3 3 . . . 1 10 4 1 . . 4 2 . 1 . . 16 . . . 1 1 . 2 Heat Transferred 26659 | . . . 50 . . 50 150 150 . . 250 730 2089 900 675 . 825 2987 801 296 111 568 2166 1112 740 1776 74 962 4702 185 . . 296 777 185 3052 Parts Sabotaged . | . . . . . . . . . . . . . . . . . . . . . . . . . . . . . . . . . . . . . Parts Stolen . | . . . . . . . . . . . . . . . . . . . . . . . . . . . . . . . . . . . . . Parts Stripped . | . . . . . . . . . . . . . . . . . . . . . . . . . . . . . . . . . . . . . Power Chain Reactions 14 | . . . 1 . . 1 2 4 . . 1 . . . . . . . . . . . 1 . . . . . 4 . . . . . . . Alert | -11 -10 -10 -9 -9 -9 -8 -8 -8 -7 -7 -7 -7 -7 -7 -7 -7 -6 -6 -6 -6 -6 -6 -6 -5 -5 -5 -5 -4 -4 -4 -4 -4 -3 -3 -2 -1 ------- Run | Yrd Mat Min Mat Min Exi Min Mat Gar Fac Was Fac Gar Fac Low Low Dat Pro Fac Ext Cet Arc Hub Gar Fac Upp Upp War Pro Fac Upp Upp Zhi Pro Res Res Acc Maximum Alert Level 5 | . 1 . . . . . 1 3 2 . . 3 2 . . . . 1 2 1 . 2 5 3 . . . . 3 . . . . . . 5 Low Security (%) 62 | 100 78 100 100 100 . 100 78 25 . 100 100 21 1 . . . . 85 98 37 100 14 . . . . . . 80 . . . . 100 100 24 Level 1 11 | . 21 . . . . . 21 13 . . . 3 78 . . . . 14 1 62 . 6 . . . . . . . . . . . . . 11 Level 2 14 | . . . . . . . . 24 100 . . 45 20 . . . . . . . . 79 10 48 . . . . 15 . . . . . . 27 Level 3 7 | . . . . . . . . 35 . . . 29 . . . . . . . . . . 24 51 . . . . 3 . . . . . . 15 Level 4 3 | . . . . . . . . . . . . . . . . . . . . . . . 53 . . . . . . . . . . . . 16 Level 5 . | . . . . . . . . . . . . . . . . . . . . . . . 11 . . . . . . . . . . . . 5 High Security . | . . . . . . . . . . . . . . . . . . . . . . . . . . . . . . . . . . . . . Max Security . | . . . . . . . . . . . . . . . . . . . . . . . . . . . . . . . . . . . . . Peak Influence 1731 | 10 245 127 131 38 . 122 269 1051 551 184 162 1057 559 . . . . 356 427 289 190 660 1731 908 . . . . 728 . . . . 191 120 1719 Initial 908 | . 3 46 . 38 . . 27 40 551 175 77 68 554 . . . . . 172 238 51 . 428 908 . . . . 71 . . . . 17 85 . Average 283 | 1 115 31 56 8 . 79 128 505 529 145 67 560 318 . . . . 63 102 210 22 483 1176 739 . . . . 159 . . . . 78 11 658 Influence Increases 17119 | 15 683 131 335 . . 272 925 1031 . 15 503 1079 375 90 163 . 163 768 1022 179 289 1173 1323 570 170 475 231 372 1459 140 20 . 50 480 77 2541 Destroy 0b10 Robot/C 9180 | . 440 100 220 . . 180 540 440 . . 220 560 200 80 160 . 120 400 540 80 80 320 700 260 160 340 180 340 620 120 20 . 40 320 40 1360 Destroy 0b10 Robot/NC 555 | 15 35 . 20 . . 15 70 10 . . 40 . 45 . . . . 40 20 5 40 60 5 35 . . . . 35 . . . . 10 . 55 Destroy Leader 1536 | . 110 20 52 . . 30 178 30 . . 84 30 80 10 . . 20 104 52 . . 120 40 52 10 30 . 30 144 20 . . 10 50 10 220 Allied During Kill 1016 | . . . . . . . . . . . . . . . 3 . 8 4 327 73 120 370 52 . . . 51 2 6 . . . . . . . Successful Hack 293 | . 5 . 7 . . . 5 28 . . 16 . 6 . . . . 20 31 3 . 12 14 12 . . . . 92 . . . . . . 42 Select Force Hacks 60 | . 30 . . . . . 30 . . . . . . . . . . . . . . . . . . . . . . . . . . . . . Disable Machine 1095 | . 30 . 15 . . 30 30 30 . . 60 45 . . . . . 105 15 15 45 165 75 60 . . . . 330 . . . . . . 45 Anti-Garrison Action 1100 | . . . . . . . . 400 . . . 350 . . . . . . . . . . 350 . . . . . . . . . . . . . Destroy Structure 1654 | . 3 11 6 . . 17 42 63 . 15 53 64 14 . . . . 50 22 3 4 126 87 136 . . . . 202 . . . . 40 27 669 Partial Spotted 45 | . . . 15 . . . . . . . . . . . . . . . . . . . . . . . . . . . . . . . . 30 Lose Combat Pursuer 585 | . 30 . . . . . 30 30 . . 30 30 30 . . . 15 45 15 . . . . 15 . 105 . . 30 . . . . 60 . 120 Influence Decreases 15433 | 10 567 252 236 99 . 200 935 42 550 406 515 120 1108 335 196 46 163 415 948 477 418 561 204 1475 642 486 430 402 847 523 246 117 24 354 229 855 Entered New Map 4667 | . 2 75 . 61 . . 45 22 500 326 33 30 503 121 16 46 . . 181 189 78 . 184 823 306 68 343 144 43 269 66 117 . 9 67 . Time Decay 8472 | 10 375 167 226 38 . 190 590 . 50 70 432 . 595 214 180 . 149 346 577 198 280 501 . 482 326 398 47 158 493 214 180 . 24 305 162 495 Lost Part 1014 | . 40 10 10 . . 10 . 20 . 10 50 90 10 . . . 14 30 10 10 . . 20 20 10 20 . 60 130 40 . . . 40 . 360 Lost Ally 479 | . . . . . . . . . . . . . . . . . . . 180 80 60 60 . . . . 40 40 19 . . . . . . . Purge Threat 801 | . 150 . . . . . 300 . . . . . . . . . . 39 . . . . . 150 . . . . 162 . . . . . . . Squads Dispatched 101 | . 6 . 3 . . . 4 . . . 5 . 5 . 1 . . 12 1 . . 9 . 5 . . . 1 8 . . . . 5 3 33 Investigation 13 | . 4 . . . . . 1 . . . 2 . . . . . . 3 . . . . . . . . . . 2 . . . . . . 1 Extermination 31 | . . . . . . . . . . . 3 . 4 . . . . 5 . . . 3 . 2 . . . . 5 . . . . 3 . 6 Reinforcement 27 | . 2 . 3 . . . 3 . . . . . 1 . . . . 3 1 . . 4 . . . . . . 1 . . . . . 3 6 Assault 19 | . . . . . . . . . . . . . . . 1 . . . . . . 2 . 3 . . . 1 . . . . . 2 . 10 Garrison 11 | . . . . . . . . . . . . . . . . . . 1 . . . . . . . . . . . . . . . . . 10 Intercept . | . . . . . . . . . . . . . . . . . . . . . . . . . . . . . . . . . . . . . Searches Triggered . | . . . . . . . . . . . . . . . . . . . . . . . . . . . . . . . . . . . . . Data Miner Redirects 10 | . . . . . . . . . . . . . . . . . . . . . . 2 . 1 . . . . . . . . . 2 . 5 Construction Impeded 4 | . . . . . . . . . . . . . . . . . . 1 1 . . . . . . . . . . . . . . . . 2 Haulers Reinforced 6 | . . . . . . . . . . . . . . . . . . . . . . 2 . . . . . . . . . . . . 3 1 Active Scanning Responses . | . . . . . . . . . . . . . . . . . . . . . . . . . . . . . . . . . . . . . Cargo Convoy Interrupts 1 | . . . . . . . . . . . . . . . . . . . . . . . . . . . . . . . . . . 1 . . Stealth | -11 -10 -10 -9 -9 -9 -8 -8 -8 -7 -7 -7 -7 -7 -7 -7 -7 -6 -6 -6 -6 -6 -6 -6 -5 -5 -5 -5 -4 -4 -4 -4 -4 -3 -3 -2 -1 --------- Run | Yrd Mat Min Mat Min Exi Min Mat Gar Fac Was Fac Gar Fac Low Low Dat Pro Fac Ext Cet Arc Hub Gar Fac Upp Upp War Pro Fac Upp Upp Zhi Pro Res Res Acc Distress Signals 34 | . 2 . . . . . 5 . . . 4 . 1 . . . . 1 . 1 . 3 1 1 . . 1 . 3 . . . . 2 5 4 Communications Jammed 40 | . . . . . . . . . . . . . . . . . . . . . . . . . . . . . 39 . . . . 1 . . Distress Signals 40 | . . . . . . . . . . . . . . . . . . . . . . . . . . . . . 39 . . . . 1 . . Times Spotted 615 | . 29 6 13 . . 9 42 23 . 6 22 28 15 4 7 . 7 33 30 5 14 12 35 18 9 22 20 19 39 6 1 . 2 27 5 107 Peak Tracking Total 17 | . 6 3 3 . . 3 5 4 . 5 3 7 3 3 4 . 4 5 4 5 3 3 6 5 5 7 17 7 5 4 1 . 2 6 2 12 Tactical Retreats 31 | . 2 . . . . . 2 2 . 1 2 2 1 . . . 1 1 1 . . . . 1 . 5 . . 2 . . . . 2 . 6 Traps | -11 -10 -10 -9 -9 -9 -8 -8 -8 -7 -7 -7 -7 -7 -7 -7 -7 -6 -6 -6 -6 -6 -6 -6 -5 -5 -5 -5 -4 -4 -4 -4 -4 -3 -3 -2 -1 ------- Run | Yrd Mat Min Mat Min Exi Min Mat Gar Fac Was Fac Gar Fac Low Low Dat Pro Fac Ext Cet Arc Hub Gar Fac Upp Upp War Pro Fac Upp Upp Zhi Pro Res Res Acc Traps Triggered 23 | . 3 . 1 . . . . . 1 . 3 1 2 . . . . 4 2 . . . . 1 . . 1 . . . . . . 2 . 2 Indirectly . | . . . . . . . . . . . . . . . . . . . . . . . . . . . . . . . . . . . . . Trap Hack Attempts . | . . . . . . . . . . . . . . . . . . . . . . . . . . . . . . . . . . . . . Triggered . | . . . . . . . . . . . . . . . . . . . . . . . . . . . . . . . . . . . . . Disarmed . | . . . . . . . . . . . . . . . . . . . . . . . . . . . . . . . . . . . . . Reprogrammed . | . . . . . . . . . . . . . . . . . . . . . . . . . . . . . . . . . . . . . Reused . | . . . . . . . . . . . . . . . . . . . . . . . . . . . . . . . . . . . . . Traps Extracted . | . . . . . . . . . . . . . . . . . . . . . . . . . . . . . . . . . . . . . Installed . | . . . . . . . . . . . . . . . . . . . . . . . . . . . . . . . . . . . . . Triggered . | . . . . . . . . . . . . . . . . . . . . . . . . . . . . . . . . . . . . . Machines | -11 -10 -10 -9 -9 -9 -8 -8 -8 -7 -7 -7 -7 -7 -7 -7 -7 -6 -6 -6 -6 -6 -6 -6 -5 -5 -5 -5 -4 -4 -4 -4 -4 -3 -3 -2 -1 ---------- Run | Yrd Mat Min Mat Min Exi Min Mat Gar Fac Was Fac Gar Fac Low Low Dat Pro Fac Ext Cet Arc Hub Gar Fac Upp Upp War Pro Fac Upp Upp Zhi Pro Res Res Acc Machines Disabled 96 | . 2 . 1 . . 2 2 9 . . 4 8 . . 1 . . 7 3 1 3 11 10 4 1 1 . 1 22 . . . . . . 3 Max in Single Turn 14 | . 1 . 1 . . 2 1 1 . . 4 1 . . 1 . . 3 1 1 1 3 1 2 1 1 . 1 14 . . . . . . 1 Garrison Access 6 | . . . . . . . . . . . 1 . . . . . . . . . . . . . . . . . . . . . . 1 3 1 Garrison Relay 16 | . . . . . . . . 6 . . . 5 . . . . . . . . . . 5 . . . . . . . . . . . . . Network Hub 1 | . . . . . . . . . . . . . . . . . . . . . . 1 . . . . . . . . . . . . . . Energy Cycler 1 | . . . . . . . . . . . . . . . . . . . 1 . . . . . . . . . . . . . . . . . Machines Repaired . | . . . . . . . . . . . . . . . . . . . . . . . . . . . . . . . . . . . . . Machines Dismantled . | . . . . . . . . . . . . . . . . . . . . . . . . . . . . . . . . . . . . . Machines Sabotaged . | . . . . . . . . . . . . . . . . . . . . . . . . . . . . . . . . . . . . . Overloaded Fab Kills . | . . . . . . . . . . . . . . . . . . . . . . . . . . . . . . . . . . . . . Hacking | -11 -10 -10 -9 -9 -9 -8 -8 -8 -7 -7 -7 -7 -7 -7 -7 -7 -6 -6 -6 -6 -6 -6 -6 -5 -5 -5 -5 -4 -4 -4 -4 -4 -3 -3 -2 -1 --------- Run | Yrd Mat Min Mat Min Exi Min Mat Gar Fac Was Fac Gar Fac Low Low Dat Pro Fac Ext Cet Arc Hub Gar Fac Upp Upp War Pro Fac Upp Upp Zhi Pro Res Res Acc Machines Accessed 92 | . 5 . 2 . 2 . 9 3 1 . 6 3 3 1 . 4 . 10 4 1 . 7 2 6 1 1 3 . 5 . . 5 . 2 1 5 Terminals 58 | . 4 . 2 . . . 7 3 . . 4 3 3 1 . . . 7 4 1 . 6 2 4 . 1 . . 3 . . . . . . 3 Fabricators . | . . . . . . . . . . . . . . . . . . . . . . . . . . . . . . . . . . . . . Repair Stations 4 | . . . . . . . . . 1 . . . . . . . . . . . . . . 2 . . . . 1 . . . . . . . Recycling Units 5 | . 1 . . . . . 1 . . . . . . . . . . 1 . . . . . . . . . . . . . . . 1 . 1 Scanalyzers 1 | . . . . . . . . . . . . . . . . . . 1 . . . . . . . . . . . . . . . . . . Garrison Access 9 | . . . . . . . 1 . . . 2 . . . . . . 1 . . . 1 . . . . . . 1 . . . . 1 1 1 Total Hacks 280 | . 13 . 3 . 24 . 21 3 1 . 12 4 8 1 . 32 . 25 12 1 . 16 3 20 1 7 6 . 30 . . 18 . 4 2 13 Successful 165 | . 4 . 2 . 24 . 10 3 . . 4 . 5 1 . 32 . 5 6 1 . 7 2 11 1 7 6 . 12 . . 18 . . 1 3 Failed 115 | . 9 . 1 . . . 11 . 1 . 8 4 3 . . . . 20 6 . . 9 1 9 . . . . 18 . . . . 4 1 10 Catastrophic 28 | . . . 1 . . . 2 . . . 3 3 . . . . . 4 1 . . . 1 2 . . . . 6 . . . . 1 . 4 Database Lockouts . | . . . . . . . . . . . . . . . . . . . . . . . . . . . . . . . . . . . . . Manual 96 | . 7 . 2 . 1 . 15 . . . 5 . 5 . . . . 18 4 1 . 9 . 12 2 . . . 7 . . . . 2 . 6 Terminals 158 | . 11 . 3 . . . 19 3 . . 8 4 8 1 . . . 18 12 1 . 15 3 14 . 7 . . 23 . . . . . . 8 Fabricators . | . . . . . . . . . . . . . . . . . . . . . . . . . . . . . . . . . . . . . Repair Stations 12 | . . . . . . . . . 1 . . . . . . . . . . . . . . 6 . . . . 5 . . . . . . . Recycling Units 9 | . 2 . . . . . 1 . . . . . . . . . . 1 . . . . . . . . . . . . . . . 2 . 3 Scanalyzers 3 | . . . . . . . . . . . . . . . . . . 3 . . . . . . . . . . . . . . . . . . Garrison Access 17 | . . . . . . . 1 . . . 4 . . . . . . 3 . . . 1 . . . . . . 2 . . . . 2 2 2 Terminal Hacks 125 | . 2 . 1 . 24 . 5 3 . . . . 3 1 . 32 . 1 5 1 . 2 2 4 1 7 6 . 7 . . 18 . . . . Record 49 | . . . . . 23 . . . . . . . . 1 . 11 . . . 1 . . . . . 7 . . . . . 6 . . . . Part Schematic 16 | . . . . . . . . . . . . . . . . 10 . . 2 . . . . . . . . . . . . 4 . . . . Robot Schematic 8 | . . . . . . . . . . . . . . . . 8 . . . . . . . . . . . . . . . . . . . . Robot Analysis 5 | . . . . . . . 1 . . . . . . . . . . . . . . . . . . . . . . . . 4 . . . . Prototype ID Bank 14 | . . . . . . . . . . . . . 1 . . 3 . . 1 . . . . 1 . . 4 . . . . 4 . . . . Open Door 3 | . . . . . . . . . . . . . . . . . . . . . . . . . 1 . 2 . . . . . . . . . Branch Access Points 3 | . . . 1 . . . . . . . . . 1 . . . . . . . . . . 1 . . . . . . . . . . . . Emergency Access Points 2 | . . . . . . . . 1 . . . . . . . . . . . . . . 1 . . . . . . . . . . . . . Garrison Index 1 | . . . . . . . . . . . . . . . . . . . . . . . . . . . . . 1 . . . . . . . Alert Level 5 | . 1 . . . . . . . . . . . . . . . . . 1 . . 2 . . . . . . 1 . . . . . . . Unreport Threat 7 | . 1 . . . . . 2 . . . . . . . . . . 1 . . . . . 1 . . . . 2 . . . . . . . Locate Traps 4 | . . . . . . . 1 . . . . . 1 . . . . . 1 . . . . 1 . . . . . . . . . . . . Recall Extermination 1 | . . . . . . . . . . . . . . . . . . . . . . . . . . . . . 1 . . . . . . . Hauler Manifests 1 | . . . . . . . 1 . . . . . . . . . . . . . . . . . . . . . . . . . . . . . Registered Components 1 | . . . . . . . . . . . . . . . . . . . . . . . . . . . . . 1 . . . . . . . Zone Layout 1 | . . . . . . . . . . . . . . . . . . . . . . . . . . . . . 1 . . . . . . . Garrison Registry 1 | . . . . . . . . 1 . . . . . . . . . . . . . . . . . . . . . . . . . . . . Patrol Navigation 1 | . . . . . . . . 1 . . . . . . . . . . . . . . . . . . . . . . . . . . . . Security Stations 1 | . . . . . . . . . . . . . . . . . . . . . . . 1 . . . . . . . . . . . . . Proto ID Catalog 1 | . . . . . 1 . . . . . . . . . . . . . . . . . . . . . . . . . . . . . . . Fabricator Hacks . | . . . . . . . . . . . . . . . . . . . . . . . . . . . . . . . . . . . . . Repair Station Hacks 8 | . . . . . . . . . . . . . . . . . . . . . . . . 5 . . . . 3 . . . . . . . Scan Component 5 | . . . . . . . . . . . . . . . . . . . . . . . . 3 . . . . 2 . . . . . . . Repair 3 | . . . . . . . . . . . . . . . . . . . . . . . . 2 . . . . 1 . . . . . . . Recycling Unit Hacks . | . . . . . . . . . . . . . . . . . . . . . . . . . . . . . . . . . . . . . Scanalyzer 2 | . . . . . . . . . . . . . . . . . . 2 . . . . . . . . . . . . . . . . . . Insert Component 1 | . . . . . . . . . . . . . . . . . . 1 . . . . . . . . . . . . . . . . . . Analyze 1 | . . . . . . . . . . . . . . . . . . 1 . . . . . . . . . . . . . . . . . . Garrison Access Hacks 6 | . . . . . . . 1 . . . 2 . . . . . . . . . . 1 . . . . . . . . . . . . 1 1 Unlock Access 3 | . . . . . . . 1 . . . 1 . . . . . . . . . . 1 . . . . . . . . . . . . . . Seal Access 3 | . . . . . . . . . . . 1 . . . . . . . . . . . . . . . . . . . . . . . 1 1 Unauthorized Hacks 24 | . 2 . 1 . . . 4 . . . 2 . 2 . . . . 2 1 . . 4 . 2 . . . . 2 . . . . . . 2 Terminals 21 | . 1 . 1 . . . 3 . . . 2 . 2 . . . . 2 1 . . 4 . 2 . . . . 2 . . . . . . 1 Assimilate 1 | . . . . . . . . . . . . . 1 . . . . . . . . . . . . . . . . . . . . . . . Botnet 20 | . 1 . 1 . . . 3 . . . 2 . 1 . . . . 2 1 . . 4 . 2 . . . . 2 . . . . . . 1 Fabricators . | . . . . . . . . . . . . . . . . . . . . . . . . . . . . . . . . . . . . . Repair Stations . | . . . . . . . . . . . . . . . . . . . . . . . . . . . . . . . . . . . . . Recycling Units 3 | . 1 . . . . . 1 . . . . . . . . . . . . . . . . . . . . . . . . . . . . 1 Recyclers 1 | . . . . . . . . . . . . . . . . . . . . . . . . . . . . . . . . . . . . 1 Tunnel 2 | . 1 . . . . . 1 . . . . . . . . . . . . . . . . . . . . . . . . . . . . . Scanalyzers . | . . . . . . . . . . . . . . . . . . . . . . . . . . . . . . . . . . . . . Garrison Access . | . . . . . . . . . . . . . . . . . . . . . . . . . . . . . . . . . . . . . Data Cores Recovered 1 | . . . . . . . . . . . . . . . . . . . 1 . . . . . . . . . . . . . . . . . Used . | . . . . . . . . . . . . . . . . . . . . . . . . . . . . . . . . . . . . . Hacking Detections 63 | . 4 . 2 . . . 7 1 1 . 5 3 2 . . . . 9 4 . . 7 . 5 . . . . 5 . . . . 2 1 5 Full Trace Events 7 | . 1 . . . . . . . . . 2 . . . . . . 1 . . . . . . . . . . 2 . . . . . . 1 Feedback Events 1 | . . . . . . . . . . . . . . . . . . . . . . . . . . . . . 1 . . . . . . . Corruption 1 | . . . . . . . . . . . . . . . . . . . . . . . . . . . . . 1 . . . . . . . Feedback Blocked 1 | . . . . . . . . . . . . . . . . . . . . . . . . . . . . . 1 . . . . . . . Robot Schematics Acquired 8 | . . . . . . . . . . . . . . . . 8 . . . . . . . . . . . . . . . . . . . . Robots Built . | . . . . . . . . . . . . . . . . . . . . . . . . . . . . . . . . . . . . . Authchips . | . . . . . . . . . . . . . . . . . . . . . . . . . . . . . . . . . . . . . Time . | . . . . . . . . . . . . . . . . . . . . . . . . . . . . . . . . . . . . . Total Robot Build Rating . | . . . . . . . . . . . . . . . . . . . . . . . . . . . . . . . . . . . . . Part Schematics Acquired 17 | . . . . . . . . . . . . . . . . 10 . 1 2 . . . . . . . . . . . . 4 . . . . Parts Built . | . . . . . . . . . . . . . . . . . . . . . . . . . . . . . . . . . . . . . Authchips . | . . . . . . . . . . . . . . . . . . . . . . . . . . . . . . . . . . . . . Time . | . . . . . . . . . . . . . . . . . . . . . . . . . . . . . . . . . . . . . Total Part Build Rating . | . . . . . . . . . . . . . . . . . . . . . . . . . . . . . . . . . . . . . Parts Repaired 2 | . . . . . . . . . . . . . . . . . . . . . . . . 1 . . . . 1 . . . . . . . Time 214 | . . . . . . . . . . . . . . . . . . . . . . . . 169 . . . . 45 . . . . . . . Parts Recycled . | . . . . . . . . . . . . . . . . . . . . . . . . . . . . . . . . . . . . . Recycled Matter . | . . . . . . . . . . . . . . . . . . . . . . . . . . . . . . . . . . . . . Retrieved Matter . | . . . . . . . . . . . . . . . . . . . . . . . . . . . . . . . . . . . . . Retrieved Components . | . . . . . . . . . . . . . . . . . . . . . . . . . . . . . . . . . . . . . Parts Scanalyzed 1 | . . . . . . . . . . . . . . . . . . 1 . . . . . . . . . . . . . . . . . . Part Schematics Acquired 1 | . . . . . . . . . . . . . . . . . . 1 . . . . . . . . . . . . . . . . . . Parts Damaged . | . . . . . . . . . . . . . . . . . . . . . . . . . . . . . . . . . . . . . Bothacking | -11 -10 -10 -9 -9 -9 -8 -8 -8 -7 -7 -7 -7 -7 -7 -7 -7 -6 -6 -6 -6 -6 -6 -6 -5 -5 -5 -5 -4 -4 -4 -4 -4 -3 -3 -2 -1 ------------ Run | Yrd Mat Min Mat Min Exi Min Mat Gar Fac Was Fac Gar Fac Low Low Dat Pro Fac Ext Cet Arc Hub Gar Fac Upp Upp War Pro Fac Upp Upp Zhi Pro Res Res Acc Used RIF Installer . | . . . . . . . . . . . . . . . . . . . . . . . . . . . . . . . . . . . . . Robots Hacked . | . . . . . . . . . . . . . . . . . . . . . . . . . . . . . . . . . . . . . Non-combat . | . . . . . . . . . . . . . . . . . . . . . . . . . . . . . . . . . . . . . Combat . | . . . . . . . . . . . . . . . . . . . . . . . . . . . . . . . . . . . . . Robot Hacks Applied . | . . . . . . . . . . . . . . . . . . . . . . . . . . . . . . . . . . . . . Relay Couplers Released 79 | . . . . . . . . 24 . . . 23 . . . . . . . . . . 22 . . . . . . . . . . 2 5 3 Machine Destruction 76 | . . . . . . . . 24 . . . 23 . . . . . . . . . . 22 . . . . . . . . . . 2 5 . Programmers 3 | . . . . . . . . . . . . . . . . . . . . . . . . . . . . . . . . . . . . 3 Fabnet Peak Effective % . | . . . . . . . . . . . . . . . . . . . . . . . . . . . . . . . . . . . . . Robots Rewired 23 | . . . . . . . . . . . . . . . 1 . . . 15 . . . . . . . 5 2 . . . . . . . . Allies Hacked . | . . . . . . . . . . . . . . . . . . . . . . . . . . . . . . . . . . . . . Hacks Repelled . | . . . . . . . . . . . . . . . . . . . . . . . . . . . . . . . . . . . . . Allies | -11 -10 -10 -9 -9 -9 -8 -8 -8 -7 -7 -7 -7 -7 -7 -7 -7 -6 -6 -6 -6 -6 -6 -6 -5 -5 -5 -5 -4 -4 -4 -4 -4 -3 -3 -2 -1 -------- Run | Yrd Mat Min Mat Min Exi Min Mat Gar Fac Was Fac Gar Fac Low Low Dat Pro Fac Ext Cet Arc Hub Gar Fac Upp Upp War Pro Fac Upp Upp Zhi Pro Res Res Acc Total Allies 35 | . . . . . . . . . . . . . 1 . 1 . . . 21 5 . . . . . . 5 2 . . . . . . . . Largest Group 13 | . . . . . . . . . . . . . 1 . 1 1 1 1 12 13 13 8 1 . . . 5 2 1 . . . . . . . Highest-Rated Group 836 | . . . . . . . . . . . . . 10 . 20 20 20 20 488 836 836 500 96 . . . 267 113 47 . . . . . . . Highest-Rated Ally 159 | . . . . . . . . . . . . . 10 . 20 20 20 20 159 159 159 96 96 . . . 64 64 47 . . . . . . . Initial Warlord ECA Mod 562 | . . . . . . . . . 9 9 9 9 18 18 18 18 17 17 17 17 17 17 17 27 27 27 27 26 26 26 26 26 25 25 24 23 Total Orders . | . . . . . . . . . . . . . . . . . . . . . . . . . . . . . . . . . . . . . Ally Attacks 337 | . . . . . . . . . . . . . . . . . . 2 120 34 38 91 9 . . . 33 6 4 . . . . . . . Total Damage 8620 | . . . . . . . . . . . . . . . . . . 20 2259 610 1368 2588 191 . . . 1288 161 135 . . . . . . . Kills 51 | . . . . . . . . . . . . . . . . . . . 18 2 3 15 2 . . . 10 1 . . . . . . . . Allies Corrupted . | . . . . . . . . . . . . . . . . . . . . . . . . . . . . . . . . . . . . . Allies Melted 7 | . . . . . . . . . . . . . . . . . . . . . . 2 . . . . 1 . . . . . . . 4 . Intel | -11 -10 -10 -9 -9 -9 -8 -8 -8 -7 -7 -7 -7 -7 -7 -7 -7 -6 -6 -6 -6 -6 -6 -6 -5 -5 -5 -5 -4 -4 -4 -4 -4 -3 -3 -2 -1 ------- Run | Yrd Mat Min Mat Min Exi Min Mat Gar Fac Was Fac Gar Fac Low Low Dat Pro Fac Ext Cet Arc Hub Gar Fac Upp Upp War Pro Fac Upp Upp Zhi Pro Res Res Acc Active Infowar (turns) 13418 | 13 1225 671 626 220 540 387 138 . . . . . . . . . . 2 . . . . . 767 450 . . . 1970 444 361 296 550 1542 1733 1483 Optics 6152 | . . . . . . . . . . . . . . . . . . . . . . . . . . . . . . 187 361 296 550 1542 1733 1483 Sensors 1 | . . . . . . . . . . . . . . . . . . . . . . . . . . . . . 1 . . . . . . . Traps 2 | . . . . . . . . . . . . . . . . . . 2 . . . . . . . . . . . . . . . . . . Seismic 3820 | 13 1225 671 626 220 540 387 138 . . . . . . . . . . . . . . . . . . . . . . . . . . . . . Decoding 2 | . . . . . . . . . . . . . . . . . . . . . . . . . 2 . . . . . . . . . . . Cloaking 1392 | . . . . . . . . . . . . . . . . . . . . . . . . 767 448 . . . . . . . . . 2 175 Jamming 4402 | . . . . . . . . . . . . . . . . . . . . . . . . . . . . . 1970 431 361 296 550 794 . . Robot Analysis Total 5 | . . . . . . . 1 . . . . . . . . . . . . . . . . . . . . . . . . 4 . . . . Derelict Logs Recovered 9 | . . 2 . . . . . . . . . . . 1 . . 1 . . . . . . . . 1 . 1 . 1 2 . . . . . Drone Launches . | . . . . . . . . . . . . . . . . . . . . . . . . . . . . . . . . . . . . . Drone Recoveries . | . . . . . . . . . . . . . . . . . . . . . . . . . . . . . . . . . . . . . Exploration | -11 -10 -10 -9 -9 -9 -8 -8 -8 -7 -7 -7 -7 -7 -7 -7 -7 -6 -6 -6 -6 -6 -6 -6 -5 -5 -5 -5 -4 -4 -4 -4 -4 -3 -3 -2 -1 ------------- Run | Yrd Mat Min Mat Min Exi Min Mat Gar Fac Was Fac Gar Fac Low Low Dat Pro Fac Ext Cet Arc Hub Gar Fac Upp Upp War Pro Fac Upp Upp Zhi Pro Res Res Acc Turns Passed 38361 | 119 1225 671 626 220 541 387 2474 1385 103 153 1875 1433 1887 459 379 134 548 2412 1773 416 1824 1437 1504 1255 733 950 1320 808 2018 444 361 296 550 1542 1733 2366 Spaces Moved 19289 | 57 543 404 290 130 334 203 1085 734 63 115 887 665 995 319 254 95 361 1313 907 205 376 742 777 632 407 527 761 435 910 229 224 168 332 775 985 1050 Core 133 | 6 . . . . . . . . . . . . . . . . . . . . . . . . . . . . . . . . . . . 127 Treads 15082 | 51 524 404 290 130 334 203 1085 734 63 . 655 665 554 . . . . 125 519 1 . 660 777 632 407 527 761 435 910 229 224 168 332 775 985 923 Legs 7 | . 7 . . . . . . . . . . . . . . . . . . . . . . . . . . . . . . . . . . . Wheels 4067 | . 12 . . . . . . . . 115 232 . 441 319 254 95 361 1188 388 204 376 82 . . . . . . . . . . . . . . Hover . | . . . . . . . . . . . . . . . . . . . . . . . . . . . . . . . . . . . . . Flight . | . . . . . . . . . . . . . . . . . . . . . . . . . . . . . . . . . . . . . Fastest Speed 50 | 50 115 160 160 160 160 160 160 160 160 120 120 160 130 130 130 130 130 125 145 130 145 145 162 160 160 160 160 160 155 156 160 160 160 160 145 50 Average Speed 156 | 150 163 160 160 160 160 160 160 160 160 120 161 170 158 130 130 130 139 129 152 143 145 160 162 166 160 160 160 160 160 159 160 160 160 160 164 158 Slowest Speed 243 | 160 240 160 240 160 160 160 160 160 160 120 240 243 240 130 130 130 145 240 160 160 145 240 162 242 160 160 160 160 240 160 160 160 160 160 240 240 Overloaded Moves . | . . . . . . . . . . . . . . . . . . . . . . . . . . . . . . . . . . . . . Propulsion Burnouts . | . . . . . . . . . . . . . . . . . . . . . . . . . . . . . . . . . . . . . Robots Hopped . | . . . . . . . . . . . . . . . . . . . . . . . . . . . . . . . . . . . . . Potential Cave-ins . | . . . . . . . . . . . . . . . . . . . . . . . . . . . . . . . . . . . . . Cave-ins Triggered . | . . . . . . . . . . . . . . . . . . . . . . . . . . . . . . . . . . . . . Teleports 1 | . . . . . . . . . . . . . . . . . . . . . . . . . . . . . . . . . . . . 1 Exploration Rate (%) 53 | 4 93 85 29 24 72 64 85 83 3 79 25 81 24 55 42 70 54 34 93 71 93 48 89 15 53 56 90 59 21 41 48 61 60 20 28 35 Regions Visited 36 Branch Regions 20 Pre-discovered Areas 11 | . 1 1 . 1 1 . 1 . . . . . . 1 . 1 . . . . . . . . . 1 . . . . . 3 . . . . Known Exits Taken 11 | . . . 1 . . . 1 . . . 1 . 1 . . . . 1 . . . 1 . 1 . . . . 1 . . . 1 1 1 . Unknown Exits Taken 20 | 1 1 1 . 1 1 1 . . . . . . . 1 1 1 1 . 1 1 1 . . . 1 1 1 1 . 1 1 1 . . . . Scrap Searched 15 | . . 1 . . . 1 . . . . . . . 2 1 . 1 . . . . . . . 1 2 . 2 . 3 . . 1 . . . Spaces Dug 196 | . . . . . . . 3 4 . . 21 16 13 . . . . 32 . . . 11 9 3 . . . . 12 . . . . 13 . 59 Terrain Destroyed 1218 | . . 11 3 . . 28 40 32 . 27 56 64 13 . 27 . 9 49 5 1 3 176 24 81 13 21 . 60 105 19 1 . 1 21 10 318 Melee 60 | . . . . . . . 3 1 . . 13 3 13 . . . . 27 . . . . . . . . . . . . . . . . . . Projectile 275 | . . . . . . . . . . . . 3 . . . . . 6 1 1 3 16 6 23 13 9 . 2 40 19 1 . 1 21 10 100 AOE 882 | . . 11 3 . . 28 37 31 . 27 43 58 . . 27 . 9 16 4 . . 160 17 58 . 12 . 58 65 . . . . . . 218 Terrain Rammed . | . . . . . . . . . . . . . . . . . . . . . . . . . . . . . . . . . . . . . Walls Destroyed . | . . . . . . . . . . . . . . . . . . . . . . . . . . . . . . . . . . . . . Machines Disabled . | . . . . . . . . . . . . . . . . . . . . . . . . . . . . . . . . . . . . . Actions | -11 -10 -10 -9 -9 -9 -8 -8 -8 -7 -7 -7 -7 -7 -7 -7 -7 -6 -6 -6 -6 -6 -6 -6 -5 -5 -5 -5 -4 -4 -4 -4 -4 -3 -3 -2 -1 --------- Run | Yrd Mat Min Mat Min Exi Min Mat Gar Fac Was Fac Gar Fac Low Low Dat Pro Fac Ext Cet Arc Hub Gar Fac Upp Upp War Pro Fac Upp Upp Zhi Pro Res Res Acc Total 25243 | 75 707 417 384 142 340 231 1657 837 66 123 1213 831 1205 340 283 105 380 1836 1247 310 1619 942 910 773 456 587 868 513 1283 264 224 197 339 998 1081 1460 Wait 3313 | . 28 2 7 13 . . 403 14 . . 184 61 104 4 6 3 4 325 91 59 1196 128 18 61 18 8 56 12 175 . . . . 134 32 167 Move 19257 | 56 542 403 289 129 333 202 1085 733 63 114 887 664 994 318 253 94 360 1312 906 204 375 742 776 631 406 526 760 434 909 228 223 167 331 774 984 1050 Hop . | . . . . . . . . . . . . . . . . . . . . . . . . . . . . . . . . . . . . . Pick Up 252 | 6 19 1 19 . 1 1 16 6 1 . 20 8 6 3 . . 2 14 9 4 7 2 1 13 1 2 7 5 30 6 . 4 1 11 7 19 Fast Attach 150 | 7 1 . 4 . 1 . 3 . . . 5 3 8 1 1 4 1 20 4 2 2 13 5 9 4 2 5 1 10 . . 8 1 7 11 7 Attach 117 | . 4 1 3 . . . 3 2 1 1 8 7 . . . . 2 7 3 2 . . 1 5 . 4 . 6 16 4 . 2 . 4 2 29 Detach 21 | . 1 . . . . . . . . . 1 1 . . . . . 3 1 1 . . . . . . . 1 2 . . 1 . . 3 6 Swap 375 | . 12 2 12 . 3 6 32 18 1 2 27 15 20 4 2 . 2 36 7 14 9 7 16 9 7 17 2 6 29 7 . 4 . 8 16 23 Drop 328 | . 12 1 16 . 2 2 27 7 . . 18 1 22 3 1 4 . 30 16 11 9 14 10 16 6 4 14 5 20 1 . 11 . 14 20 11 Fire 1059 | 6 88 7 34 . . 20 82 40 . 6 36 55 27 7 8 . 9 56 30 13 6 36 83 29 14 24 1 25 92 18 1 . 6 46 6 148 Melee 136 | . . . . . . . 6 17 . . 27 14 24 . . . . 33 . . 15 . . . . . . . . . . . . . . . Ram . | . . . . . . . . . . . . . . . . . . . . . . . . . . . . . . . . . . . . . Kick . | . . . . . . . . . . . . . . . . . . . . . . . . . . . . . . . . . . . . . Crush . | . . . . . . . . . . . . . . . . . . . . . . . . . . . . . . . . . . . . . Escape Stasis 10 | . . . . . . . . . . . . 2 . . . . . . 8 . . . . . . . . . . . . . . . . . Rewire 225 | . . . . . . . . . . . . . . . 12 . . . 172 . . . . . . . 23 18 . . . . . . . . Trap . | . . . . . . . . . . . . . . . . . . . . . . . . . . . . . . . . . . . . . Miscellaneous . | . . . . . . . . . . . . . . . . . . . . . . . . . . . . . . . . . . . . . Route ------- -11/Scrapyard -10/Materials (discovered 4 exits: *Mat x3 / [*Min]) -10/Mines (discovered 2 exits: *Mat / [*Sub]) -9/Materials (discovered 3 exits: *Min x2 / Sto) -9/Mines -9/Exiles -8/Mines -8/Materials (discovered 3 exits: *Fac x2 / Gar) -8/Garrison (discovered 3 exits: *Fac x3) -7/Factory -7/Waste -7/Factory (discovered 2 exits: *Low / Gar) -7/Garrison (discovered 4 exits: *Fac x4) -7/Factory (discovered 2 exits: *Low x2) -7/Lower Caves (discovered 2 exits: [*Low] / [*Zio]) -7/Lower Caves -7/Data Miner -6/Proximity Caves -6/Factory (discovered 4 exits: *Fac x2 / [*Low] / *Ext) -6/Extension (discovered 2 exits: *Fac / *Cet) -6/Cetus -6/Archives (discovered 3 exits: *Fac / *Hub x2) -6/Hub_04(d) (discovered 2 exits: *Fac / Gar) -6/Garrison (discovered 3 exits: *Fac x3) -5/Factory (discovered 2 exits: *Upp x2) -5/Upper Caves -5/Upper Caves (discovered 2 exits: *Fac / *War) -5/Warlord -4/Proximity Caves -4/Factory (discovered 3 exits: *Res x2 / *Upp) -4/Upper Caves -4/Upper Caves -4/Zhirov -3/Proximity Caves -3/Research (discovered 3 exits: *Res x3) -2/Research -1/Access History --------- Turn | Location | Event 5 | -11/Scrapyard | Discovered new exit (range 15) 120 | -11/Scrapyard | Entered Materials 290 | -10/Materials | Discovered new exit (range 12) 294 | -10/Materials | Destroyed 7 combat bots 312 | -10/Materials | Build established: Mutant 453 | -10/Materials | Discovered new exit (range 9) 816 | -10/Materials | Discovered new exit (range 16) 1057 | -10/Materials | Core integrity fell below 50% 1088 | -10/Materials | Discovered new exit (range 15) 1345 | -10/Materials | Entered Mines 1446 | -10/Mines | Discovered new exit (range 8) 1950 | -10/Mines | Discovered new exit (range 5) 1961 | -10/Mines | Learned Materials non-interactive machine intel 2016 | -10/Mines | Entered Materials 2016 | -9/Materials | Evolved 2 slots: Propulsion x1, Weapon x1 2017 | -9/Materials | Loaded intel: 31 non-interactive machine locations 2142 | -9/Materials | Discovered new exit (range 11) 2551 | -9/Materials | Build established: Scavenger-Gunner 2628 | -9/Materials | Identified exit to Mines 2628 | -9/Materials | Identified exit to Storage 2642 | -9/Materials | Entered Mines 2692 | -9/Mines | Deemed a non-threat by the Exiles lab entrance 2692 | -9/Mines | Discovered new exit (range 5) 2792 | -9/Mines | Learned location of Storage (-9) 2862 | -9/Mines | Entered Exiles 2907 | -9/Exiles | Met 8R-AWN 2936 | -9/Exiles | Met EX-HEX 3019 | -9/Exiles | Met EX-DEC 3026 | -9/Exiles | Learned location of Zion (-6) 3061 | -9/Exiles | Met EX-BIN 3085 | -9/Exiles | Aligned with FarCom system 3086 | -9/Exiles | Given EX-Vault access code 3123 | -9/Exiles | Opened EX-Vault 3131 | -9/Exiles | Found Gui. Plasma Cannon 3138 | -9/Exiles | Found Trap Reconfigurator 3148 | -9/Exiles | Found Cloak of Protection 3179 | -9/Exiles | Warned to stay clear of 0b10 Research branches 3384 | -9/Exiles | Discovered new exit (range 14) 3403 | -9/Exiles | Left Exiles lab with Cloak of Protection 3403 | -9/Exiles | Entered Mines 3734 | -8/Mines | Build established: Scavenger-Skirmisher 3780 | -8/Mines | Discovered new exit (range 6) 3790 | -8/Mines | Entered Materials 3790 | -8/Materials | Evolved 2 slots: Propulsion x1, Utility x1 4889 | -8/Materials | Discovered new exit (range 10) 5933 | -8/Materials | Discovered new exit (range 8) 6264 | -8/Materials | Identified exit to Garrison 6264 | -8/Materials | Entered Garrison 6366 | -8/Garrison | Triggered checkpoint 6378 | -8/Garrison | Garrison Relay disabled 6566 | -8/Garrison | Discovered new exit (range 10) 6617 | -8/Garrison | Triggered checkpoint 6704 | -8/Garrison | Garrison Relay disabled 6963 | -8/Garrison | Discovered new exit (range 15) 7048 | -8/Garrison | Garrison Relay disabled 7114 | -8/Garrison | Triggered checkpoint 7158 | -8/Garrison | Garrison Relay disabled 7160 | -8/Garrison | Garrison Relay disabled 7336 | -8/Garrison | Triggered checkpoint 7394 | -8/Garrison | Discovered new exit (range 30) 7394 | -8/Garrison | Discovered new exit (range 52) 7394 | -8/Garrison | Discovered new exit (range 26) 7483 | -8/Garrison | Garrison Relay disabled 7649 | -8/Garrison | Entered Factory 7649 | -7/Factory | Evolved 2 slots: Utility x1, Weapon x1 7752 | -7/Factory | Sucked down chute 7752 | -7/Factory | Entered Waste 7765 | -7/Waste | Spotted C-40 Crusher 7767 | -7/Waste | EMP discharged 7800 | -7/Waste | Destroyed C-40 Crusher 7801 | -7/Waste | Spotted C-40 Crusher 7824 | -7/Waste | Spotted C-40 Crusher 7825 | -7/Waste | Spotted C-40 Crusher 7851 | -7/Waste | Spotted C-40 Crusher 7867 | -7/Waste | EMP discharged 7867 | -7/Waste | System corruption reached 10% 7885 | -7/Waste | Spotted C-40 Crusher 7894 | -7/Waste | Discovered new exit (range 10) 7905 | -7/Waste | Entered Factory 8718 | -7/Factory | Lost 5 parts (3n1u1w) 9394 | -7/Factory | Build established: Skirmisher 9576 | -7/Factory | Discovered new exit (range 7) 9780 | -7/Factory | Identified exit to Garrison 9780 | -7/Factory | Entered Garrison 9812 | -7/Garrison | Triggered checkpoint 9868 | -7/Garrison | Discovered new exit (range 5) 9872 | -7/Garrison | Build established: Scavenger-Skirmisher 9923 | -7/Garrison | Garrison Relay disabled 9966 | -7/Garrison | Triggered checkpoint 10093 | -7/Garrison | Triggered checkpoint 10163 | -7/Garrison | Destroyed 10 combat bots 10170 | -7/Garrison | Lost 4 parts (1n3w) 10379 | -7/Garrison | Discovered new exit (range 15) 10443 | -7/Garrison | Triggered checkpoint 10487 | -7/Garrison | Garrison Relay disabled 10518 | -7/Garrison | Build established: Skirmisher 10556 | -7/Garrison | Triggered checkpoint 10650 | -7/Garrison | Discovered new exit (range 12) 10714 | -7/Garrison | Triggered checkpoint 10792 | -7/Garrison | Garrison Relay disabled 11004 | -7/Garrison | Triggered checkpoint 11089 | -7/Garrison | Discovered new exit (range 8) 11122 | -7/Garrison | Triggered checkpoint 11138 | -7/Garrison | Garrison Relay disabled 11158 | -7/Garrison | Garrison Relay disabled 11194 | -7/Garrison | Build established: Scavenger-Skirmisher 11213 | -7/Garrison | Entered Factory 12203 | -7/Factory | Build established: Skirmisher 12688 | -7/Factory | P-60 Hacker assimilated allied Technician 4a 12798 | -7/Factory | Identified exit to Lower Caves 13100 | -7/Factory | Entered Lower Caves 13107 | -7/Lower Caves | Met a Warlord Commander 13108 | -7/Lower Caves | Learned location of Warlord (-5) 13109 | -7/Lower Caves | Warlord Commander delivered Encrypted Comm Array 13115 | -7/Lower Caves | Found Encrypted Comm Array 13327 | -7/Lower Caves | A Derelict revealed a hidden shortcut to a safe place 13365 | -7/Lower Caves | Attracted the attention of an 0b10 checkpoint 13401 | -7/Lower Caves | Build established: Gunner 13512 | -7/Lower Caves | Learned Factory stockpile data 13548 | -7/Lower Caves | Discovered new exit (range 7) 13559 | -7/Lower Caves | Entered another Lower Caves area 13593 | -7/Lower Caves | Attracted the attention of an 0b10 outpost 13869 | -7/Lower Caves | Attracted the attention of an 0b10 checkpoint 13907 | -7/Lower Caves | Discovered new exit (range 9) 13938 | -7/Lower Caves | Entered Data Miner 13938 | -7/Data Miner | Accompanied by 1 ally 13941 | -7/Data Miner | Discovered new exit (range 6) 13965 | -7/Data Miner | Met Data Miner 13987 | -7/Data Miner | Learned location of Section 7 (-2) 13987 | -7/Data Miner | Acquired the access code to Warlord's prototype stash 14008 | -7/Data Miner | Received God Mode back door access code from Data Miner 14072 | -7/Data Miner | Entered Proximity Caves 14072 | -6/Proximity Caves | Accompanied by 1 ally 14567 | -6/Proximity Caves | Build established: Tank 14598 | -6/Proximity Caves | Discovered new exit (range 13) 14620 | -6/Proximity Caves | Entered Factory 14620 | -6/Factory | Accompanied by 1 ally 14620 | -6/Factory | Evolved 2 slots: Propulsion x1, Utility x1 14621 | -6/Factory | Identified exit to Extension 14924 | -6/Factory | Discovered new exit (range 14) 15307 | -6/Factory | Found Unknown Device 15307 | -6/Factory | Identified Launcher Loader 15376 | -6/Factory | P-60 Hacker assimilated allied Gladiator 4a 15391 | -6/Factory | Garrison activated, responded to threat 16145 | -6/Factory | Discovered new exit (range 16) 16609 | -6/Factory | Discovered new exit (range 13) 17032 | -6/Factory | Entered Extension 17227 | -6/Extension | Rescued a captive Derelict 17439 | -6/Extension | Rescued a captive Derelict 17500 | -6/Extension | Build established: Commander-Tank 17560 | -6/Extension | Rescued a captive Derelict 17842 | -6/Extension | Build established: Tank 18242 | -6/Extension | Rescued A7 18483 | -6/Extension | Build established: Commander-Tank 18533 | -6/Extension | Discovered new exit (range 15) 18535 | -6/Extension | Discovered new exit (range 15) 18613 | -6/Extension | Energy Cycler disabled 18613 | -6/Extension | Rescued a captive Derelict 18618 | -6/Extension | Rescued a captive Derelict 18805 | -6/Extension | Entered Cetus 18805 | -6/Cetus | Accompanied by 12 allies (A7) 18810 | -6/Cetus | Acquired a Cetus Manufacturing Module code from A7 18833 | -6/Cetus | Spotted Cetus Guard 18833 | -6/Cetus | Spotted Cetus Guard 18836 | -6/Cetus | Spotted Cetus Guard 18836 | -6/Cetus | Spotted Cetus Guard 18840 | -6/Cetus | Destroyed Cetus Guard 18846 | -6/Cetus | Allies destroyed Cetus Guard 18854 | -6/Cetus | Destroyed Cetus Guard 18862 | -6/Cetus | Allies destroyed Cetus Guard 18882 | -6/Cetus | Lost 4 allies 19020 | -6/Cetus | Started Cetus Manufacturing Module 19045 | -6/Cetus | Manufactured an Enhanced Grunt 19070 | -6/Cetus | Manufactured an Enhanced Grunt 19095 | -6/Cetus | Manufactured an Enhanced Grunt 19097 | -6/Cetus | Escorted A7 to Cetus Mainframe 19120 | -6/Cetus | Manufactured an Enhanced Grunt 19145 | -6/Cetus | Manufactured an Enhanced Grunt 19178 | -6/Cetus | Discovered new exit (range 16) 19221 | -6/Cetus | Entered Archives 19221 | -6/Archives | Accompanied by 13 allies (A7) 19226 | -6/Archives | Received a hacking code to weaken MAIN.C 19286 | -6/Archives | Lost 4 allies 19286 | -6/Archives | Unable to access archive contents 19292 | -6/Archives | Discovered new exit (range 15) 19301 | -6/Archives | Unable to access archive contents 19307 | -6/Archives | Discovered new exit (range 15) 19341 | -6/Archives | Build established: Commander-Gunner 19357 | -6/Archives | Discovered new exit (range 14) 21045 | -6/Archives | Entered Hub_04(d) 21045 | -6/Hub_04(d) | Accompanied by 8 allies 21216 | -6/Hub_04(d) | Spotted B-75 Beast 21235 | -6/Hub_04(d) | Lost 3 allies 21471 | -6/Hub_04(d) | Build established: Scavenger-Gunner 21745 | -6/Hub_04(d) | First assault squad dispatched 21760 | -6/Hub_04(d) | Incoming assault squad redirected 21771 | -6/Hub_04(d) | Incoming assault squad redirected 21915 | -6/Hub_04(d) | Discovered new exit (range 4) 22064 | -6/Hub_04(d) | Network Hub disabled 22380 | -6/Hub_04(d) | Identified exit to Garrison 22482 | -6/Hub_04(d) | Entered Garrison 22482 | -6/Garrison | Accompanied by 1 ally 22531 | -6/Garrison | Triggered checkpoint 22558 | -6/Garrison | Garrison Relay disabled 22572 | -6/Garrison | Triggered checkpoint 22632 | -6/Garrison | Triggered checkpoint 22632 | -6/Garrison | Triggered checkpoint 22669 | -6/Garrison | Triggered checkpoint 22710 | -6/Garrison | Destroyed 13 combat bots 22775 | -6/Garrison | Discovered new exit (range 12) 22924 | -6/Garrison | Triggered checkpoint 23013 | -6/Garrison | Garrison Relay disabled 23075 | -6/Garrison | Learned Factory security intel 23215 | -6/Garrison | Garrison Relay disabled 23435 | -6/Garrison | Discovered new exit (range 9) 23485 | -6/Garrison | Triggered checkpoint 23521 | -6/Garrison | Garrison Relay disabled 23672 | -6/Garrison | Triggered checkpoint 23745 | -6/Garrison | Discovered new exit (range 8) 23886 | -6/Garrison | Garrison Relay disabled 23986 | -6/Garrison | Entered Factory 23986 | -5/Factory | Evolved 2 slots: Utility x2 24435 | -5/Factory | Build established: Scavenger-Skirmisher 24468 | -5/Factory | Repaired Broken Imp. Medium Treads? 24885 | -5/Factory | Identified exit to Upper Caves 24886 | -5/Factory | First assault squad dispatched 24906 | -5/Factory | Incoming assault squad redirected 24924 | -5/Factory | Build established: Scavenger-Tank 25241 | -5/Factory | Entered Upper Caves 25476 | -5/Upper Caves | Attracted the attention of an 0b10 outpost 25862 | -5/Upper Caves | Discovered new exit (range 13) 25882 | -5/Upper Caves | Acquired the password to a Derelict Tinkerer's latest research 25910 | -5/Upper Caves | Found Prototype Special Weapon 25910 | -5/Upper Caves | Identified Molecular Deconstructor 25974 | -5/Upper Caves | Entered another Upper Caves area 26005 | -5/Upper Caves | Discovered new exit (range 5) 26106 | -5/Upper Caves | Spotted B-75 Beast 26464 | -5/Upper Caves | Attracted the attention of an 0b10 base 26526 | -5/Upper Caves | Learned 8 Factory zone layouts 26549 | -5/Upper Caves | Learned location of Armory (-4) 26549 | -5/Upper Caves | Learned location of 1 exit from Research 26549 | -5/Upper Caves | Learned 6 Lower Caves zone layouts 26549 | -5/Upper Caves | Learned Factory trap positions 26549 | -5/Upper Caves | Learned Research terminal intel 26910 | -5/Upper Caves | Discovered new exit (range 10) 26924 | -5/Upper Caves | Entered Warlord 26984 | -5/Warlord | System corruption cleaned by Quarantine Array 27612 | -5/Warlord | Met Warlord 27637 | -5/Warlord | Warlord's base attacked by MAIN.C 27987 | -5/Warlord | Warlord forces counterattacked 28106 | -5/Warlord | Opened side exit 28146 | -5/Warlord | Spotted Executioner 28164 | -5/Warlord | Spotted Striker 28189 | -5/Warlord | Discovered new exit (range 12) 28227 | -5/Warlord | Lost 19 allies 28244 | -5/Warlord | Entered Proximity Caves 28244 | -4/Proximity Caves | Accompanied by 2 allies 28389 | -4/Proximity Caves | Found DCF Scrap (12 items) 28547 | -4/Proximity Caves | Learned 8 Research zone layouts 28608 | -4/Proximity Caves | Unaware initiated a cargo recovery operation 28719 | -4/Proximity Caves | Attracted the attention of an 0b10 outpost 28771 | -4/Proximity Caves | Lost 4 parts (2n2u) 28786 | -4/Proximity Caves | Destroyed 11 combat bots 28842 | -4/Proximity Caves | Lost 3 parts (1u2w) 29033 | -4/Proximity Caves | Discovered new exit (range 7) 29052 | -4/Proximity Caves | Entered Factory 29052 | -4/Factory | Accompanied by 1 ally 29052 | -4/Factory | Evolved 2 slots: Power x1, Propulsion x1 29053 | -4/Factory | Identified exit to Upper Caves 29053 | -4/Factory | Identified exit to Research 29054 | -4/Factory | Loaded intel: 113 trap records 29538 | -4/Factory | Discovered exit to Research (range 6) 29595 | -4/Factory | Repaired Broken Centrium Heavy Treads 29624 | -4/Factory | Lost 3 parts (1p1n1w) 30765 | -4/Factory | Lost 3 parts (1u2w) 31007 | -4/Factory | Lost 5 parts (1n3u1w) 31070 | -4/Factory | Entered Upper Caves 31140 | -4/Upper Caves | Lost 3 parts (1p1n1w) 31247 | -4/Upper Caves | Learned 4 Research zone layouts 31496 | -4/Upper Caves | Discovered new exit (range 10) 31514 | -4/Upper Caves | Entered another Upper Caves area 31679 | -4/Upper Caves | Attracted the attention of an 0b10 checkpoint 31700 | -4/Upper Caves | Learned location of 1 exit from Research 31857 | -4/Upper Caves | Discovered new exit (range 11) 31875 | -4/Upper Caves | Entered Zhirov 31878 | -4/Zhirov | Discovered new exit (range 3) 31906 | -4/Zhirov | Met Zhirov 31949 | -4/Zhirov | Found Alien Artifact 31949 | -4/Zhirov | Identified Integrated Dissipator 31949 | -4/Zhirov | Installed Integrated Dissipator, increased core heat dissipation (+20) 31979 | -4/Zhirov | Found Alien Artifact 32095 | -4/Zhirov | Learned location of Command (-1) 32095 | -4/Zhirov | Learned location of Testing (-3) 32095 | -4/Zhirov | Learned location of Quarantine (-2) 32111 | -4/Zhirov | Zhirov requested help retrieving the SGEMP Prototype 32171 | -4/Zhirov | Entered Proximity Caves 32650 | -3/Proximity Caves | Discovered exit to Research (range 8) 32721 | -3/Proximity Caves | Entered Research 32721 | -3/Research | Evolved 2 slots: Utility x2 32722 | -3/Research | Identified exit to Research 32724 | -3/Research | Loaded intel: 23 terminal locations 32813 | -3/Research | Discovered exit to Research (range 14) 33546 | -3/Research | Lost 3 parts (2u1w) 34072 | -3/Research | Cargo convoy interrupted 34108 | -3/Research | Incoming assault squad redirected 34110 | -3/Research | Incoming assault squad redirected 34263 | -3/Research | Entered another Research area 34263 | -2/Research | Warlord forces began assault on 0b10 34263 | -2/Research | Evolved 2 slots: Utility x1, Weapon x1 34288 | -2/Research | Distinguished unit "Lucky Slug" dispatched to help 34288 | -2/Research | Distinguished unit "Lair Dwellers" dispatched to help 34373 | -2/Research | Research machine network offline 34484 | -2/Research | Lost 4 allies 34661 | -2/Research | Found Prototype Launcher 34661 | -2/Research | Identified Point Singularity Launcher 34700 | -2/Research | Borebot progress halted 34722 | -2/Research | Met up with Warlord 34778 | -2/Research | Found Prototype Processor 34778 | -2/Research | Identified Exp. Core Analyzer 35189 | -2/Research | Discovered new exit (range 21) 35222 | -2/Research | Identified exit to Access 35532 | -2/Research | Build established: Tank 35773 | -2/Research | Given Cave Seal Controls access code 35953 | -2/Research | Build established: Scavenger-Tank 35962 | -2/Research | System corruption reached 10% 35996 | -2/Research | Entered Access 35996 | -1/Access | Evolved 2 slots: Power x1, Utility x1 36206 | -1/Access | Garrison activated, responded to threat 36366 | -1/Access | Garrison activated, responded to threat 36785 | -1/Access | Garrison activated, responded to threat 36905 | -1/Access | Lost 3 parts (2u1w) 36970 | -1/Access | Build established: Tank 36996 | -1/Access | First assault squad dispatched 37170 | -1/Access | Spotted B-99 Colossus 37182 | -1/Access | Spotted B-99 Colossus 37519 | -1/Access | Destroyed 11 combat bots 37525 | -1/Access | Found Fusion Bomb Launcher 37573 | -1/Access | System corruption reached 10% 37636 | -1/Access | Build established: Scavenger-Tank 37654 | -1/Access | Garrison activated, responded to threat 37658 | -1/Access | Incoming assault squad redirected 37673 | -1/Access | Identified Transdimensional Reconstructor 37673 | -1/Access | Warped through subspace 37673 | -1/Access | Spotted B-99 Colossus 37718 | -1/Access | Lost 5 parts (1p1n2u1w) 37948 | -1/Access | Build established: Tank 38012 | -1/Access | Incoming assault squad redirected 38023 | -1/Access | Incoming assault squad redirected 38129 | -1/Access | Lost 4 parts (1n1u2w) 38192 | -1/Access | Incoming assault squad redirected 38242 | -1/Access | Lost 5 parts (1p2n1u1w) 38262 | -1/Access | Incoming assault squad redirected 38263 | -1/Access | System corruption reached 30% 38277 | -1/Access | Core integrity fell below 50% 38295 | -1/Access | Released all parts (8) 38331 | -1/Access | Lost 11 parts (1p2n3u5w) 38338 | -1/Access | Core integrity fell below 20% 38362 | -1/Access | Destroyed by G-73 Enforcer with Phase Gun Last Messages --------------- 38295_ Released Adv. Thermal Defense Suite. 38295_ Released Adv. Point Defense System. 38295_ Released Graphene Brace. 38295_ Released Huge Storage Unit. 38295_ Released Imp. Armor Integrity Analyzer. 38295_ Released Hds. Centrium Heavy Treads. 38295_ Released HERF Cannon. 38296_ Acquired Adv. Remote Datajack. 38300_ Dropped Adv. Thermal Shield. 38300_ Adv. Remote Datajack destroyed. 38300_ Acquired Imp. Plasma Cutter. 38309_ System corrupted: Component data lost. 38326_ VFUZZVLIOBOOHH3HYUQP=PZWNKX8FVH 38330_ Wave Collapse Detector explodes. 38333_ M-36 Artificer repairs P-80 Master Gamma Rifle. 38342_ YRXCD8J1V7|L5,CW3DN37WHLM 38347_ Slug penetrates Wall. 38357_ System corrupted: Energy discharge (-36). 38362_ Wave Collapse Detector explodes. Map ----- +----------------------------------------------------+ | ?????????????????????????????????????????????????? | | ?????????????????????????????????????????????????? | | ?????????????????????????????????????????????????? | | ?????????????????????????????????????????????????? | | ?????????????????????????????????????????????????? | | ?????????????????????????????????????????????????? | | ?????????????????????????????????????????????????? | | ?????????????????????????????????????????????????? | | ?????????????????????????????????????????????????? | | ?????????????????????????????????????????????????? | | ?????????????????????????????????????????????????? | | ?????????????????????????????????????????????????? | | ?????????????????????????????????????????????????? | | ?????????????????????????????????????????????????? | | ??????????????????????????BB?????????????????????? | | ??????????????????????????BB?????????????????????? | | ##?#????????????h???h????????????????????????????? | | #!????????????????????????????????????????????? | | !!??????????#"""#????????????????????????????? | | ########### ##############???????????????? | | # # = #???????????????? | | # #???????????????? | | + #???????????????? | | !! # #???????????????? | | !! ] ]# #???????????????? | | # @ ! #???????????????? | | = # #???????????????? | | # #???????????????? | | ################# #???????????????? | | ################# [#???????????????? | | #g #???????????????? | | + #???????????????? | | #####p########???????????????? | | ################# # #???????????????? | | ????????????????# # #???????????????? | | ????????????????# #p ! #???????????????? | | ????????????????# / #???????????????? | | ????????????????# # """"" #???????????????? | | ????????????????# # """"" #???????????????? | | #???????????????# # """"" #???????????????? | | #???????????????# Y # """"" #???????????????? | | #???????????????# # """"" #???????????????? | | #???????????????# # """"" #???????????????? | | #???????????????# # #???????????????? | | #???????????????# # ? #???????????????? | | #???????????????# ######?#######???????????????? | | ????????????????# #????????????????????????????? | | ???????????????? * ?????????????????????????????? | | ???????????????? ?????????????????????????????? | | ???????????????? ?????????????????????????????? | +----------------------------------------------------+ Best States ------------- Heat Dissipation 153 Coolant Potential 100 Energy Generation 63 Energy Capacity 830 Matter Stores 300 Matter Capacity 300 Sight Range 22 Terrain Scan Density 10 Jamming Range 16 Cloak Strength 5 EM Shielding 2 Armor Coverage 825 Resistance: KI 30 Resistance: TH 30 Point Defense Rating 240 Weapon Cycling 20 Evasion (%) 50 Targeting Accuracy 8 Target Analysis 6 Armor Integrity Analysis 40 Recoil Reduction 6 Particle Charging 20 Offensive Hacking 12 Defensive Hacking 14 Item Schematics ----------------- Combat Drone Bay | -7/Data Miner | Free Lgt. Regenerative Plating | -7/Data Miner | Free Biomechanical Wings | -7/Data Miner | Free Thermal Defense Suite | -7/Data Miner | Free Force Rifle | -7/Data Miner | Free Gyrokinetic Inverter | -7/Data Miner | Free Remote Force Field | -7/Data Miner | Free Mass Driver | -7/Data Miner | Free Imp. Particle Charger | -7/Data Miner | Free Imp. Point Defense System | -7/Data Miner | Free Arm. Huge Wheel | -6/Factory | Scanalyzed Plasma Cutter | -6/Extension | Hacked Hcp. Storage Unit | -6/Extension | Hacked Assault Drone Bay | -4/Zhirov | Free Exp. Heat Sink | -4/Zhirov | Free Exp. Optical Array | -4/Zhirov | Free Imp. Arc Thrower | -4/Zhirov | Free Robot Schematics ------------------ S-27 Virus | -7/Data Miner | Free E-15 Imp | -7/Data Miner | Free W-25 Informer | -7/Data Miner | Free G-50 Soldier | -7/Data Miner | Free B-60 Warrior | -7/Data Miner | Free I-36 Angel | -7/Data Miner | Free L-41 Fighter | -7/Data Miner | Free R-10 Processor | -7/Data Miner | Free Fabricated ------------ Nothing Repaired ---------- Imp. Medium Treads | 7% | -5/Factory | Broken Centrium Heavy Treads | 2% | -4/Factory | Broken Alien Tech Used ----------------- Integrated Dissipator Transdimensional Reconstructor Achievements -------------- Great Explorer Challenges ------------ None Game ------ Seed StormAblativeNeutralizer Manual? 0 Play Time 06:54:02 Cumulative 187.4 hours Start 2025.08.09 @ 17:56:01 End 2025.08.10 @ 17:14:30 Sessions 7 Manual Loads 0 Difficulty Rogue Special Mode None Game No. 77 Rogue 77 Adventurer 0 Explorer 0 Win Type - Total 2 Types 2/0/0/0/0/0/0/0/0/0 Lore% 72 Gallery% 69 Achievement% 57 Wizard Run 0 Options --------- Layout 1 ASCII 0 Keyboard 0 Movement Mouse Keybinds 0 Fullscreen 1 Font 32/Smallcaps Map View 50x35 Zoom Use 0% Tactical HUD 1 Map Filters NONE Filters NONE Steam 1 RUN: 0ff0261f-fdcd-4946-ac19-61bc9c87a98d